{"text_format":"1","workbook":"xlsx","n_sheets":2,"sheets":["Data","Diagram"],"not_rendered":{"charts":0,"images":0,"macros":1,"external_links":0,"defined_names":0,"comments":0,"pivot_tables":2},"unopened":[],"bounds":{"document_bytes":16777216,"sheet_cells":100000,"rows_first":2000,"rows_last":500,"rows_between":2000,"halvings":0,"cell_chars":16384,"cell_head_chars":4096},"cells_cut":0,"cells_raw":0,"read":"whole","date_system":"1900"}

{"sheet":"Data","index":0,"n_rows":1048576,"n_cols":10,"rows_kept":4500,"cut":true,"hidden":false,"merged":[],"bounds":{"rows_first":2000,"rows_last":500,"rows_between":2000,"halvings":0}}
["Clauses","Text","Semantic Labels","Frequency",null,null,"Thematic-Density Index (TDI)"]
["R0001",null,null,{"$f":"IF(ISBLANK(C2),\"\",1)","v":""},null,null,"No. of themes",null,{"$f":"COUNTA(C2:C1048576)","v":0}]
["R0002",null,null,{"$f":"IF(ISBLANK(C3),\"\",1)","v":""},null,null,"No. of semantic labels",null,{"$f":"COUNTA(G9:G1048576)","v":1}]
["R0003",null,null,"",null,null,"TDI",null,{"$f":"I2/I3","v":0}]
["R0004",null,null,""]
["R0005",null,null,""]
["R0006",null,null,"",null,null,"Themes per Semantic Label"]
["R0007",null,null,"",null,null,"Row Labels","No. of Themes","% of Total","Total"]
["R0008",null,null,"",null,null,"(blank)",1000,1,{"$f":"SUM(H9:H1048576)","v":1000}]
["R0009",null,null,""]
["R0010",null,null,""]
["R0011",null,null,""]
["R0012",null,null,""]
["R0013",null,null,""]
["R0014",null,null,""]
["R0015",null,null,""]
["R0016",null,null,""]
["R0017",null,null,""]
["R0018",null,null,""]
["R0019",null,null,""]
["R0020",null,null,""]
["R0021",null,null,""]
["R0022",null,null,""]
["R0023",null,null,""]
["R0024",null,null,""]
["R0025",null,null,""]
["R0026",null,null,""]
["R0027",null,null,""]
["R0028",null,null,""]
["R0029",null,null,""]
["R0030",null,null,""]
["R0031",null,null,""]
["R0032",null,null,""]
["R0033",null,null,""]
["R0034",null,null,""]
["R0035",null,null,""]
["R0036",null,null,""]
["R0037",null,null,""]
["R0038",null,null,""]
["R0039",null,null,""]
["R0040",null,null,""]
["R0041",null,null,""]
["R0042",null,null,""]
["R0043",null,null,""]
["R0044",null,null,""]
["R0045",null,null,""]
["R0046",null,null,""]
["R0047",null,null,""]
["R0048",null,null,""]
["R0049",null,null,""]
["R0050",null,null,""]
["R0051",null,null,""]
["R0052",null,null,""]
["R0053",null,null,""]
["R0054",null,null,""]
["R0055",null,null,""]
["R0056",null,null,""]
["R0057",null,null,""]
["R0058",null,null,""]
["R0059",null,null,""]
["R0060",null,null,""]
["R0061",null,null,""]
["R0062",null,null,""]
["R0063",null,null,""]
["R0064",null,null,""]
["R0065",null,null,""]
["R0066",null,null,{"$f":"IF(ISBLANK(C67),\"\",1)","v":""}]
["R0067",null,null,""]
["R0068",null,null,""]
["R0069",null,null,""]
["R0070",null,null,""]
["R0071",null,null,""]
["R0072",null,null,""]
["R0073",null,null,""]
["R0074",null,null,""]
["R0075",null,null,""]
["R0076",null,null,""]
["R0077",null,null,""]
["R0078",null,null,""]
["R0079",null,null,""]
["R0080",null,null,""]
["R0081",null,null,""]
["R0082",null,null,""]
["R0083",null,null,""]
["R0084",null,null,""]
["R0085",null,null,""]
["R0086",null,null,""]
["R0087",null,null,""]
["R0088",null,null,""]
["R0089",null,null,""]
["R0090",null,null,""]
["R0091",null,null,""]
["R0092",null,null,""]
["R0093",null,null,""]
["R0094",null,null,""]
["R0095",null,null,""]
["R0096",null,null,""]
["R0097",null,null,""]
["R0098",null,null,""]
["R0099",null,null,""]
["R0100",null,null,""]
["R0101",null,null,""]
["R0102",null,null,""]
["R0103",null,null,""]
["R0104",null,null,""]
["R0105",null,null,""]
["R0106",null,null,""]
["R0107",null,null,""]
["R0108",null,null,""]
["R0109",null,null,""]
["R0110",null,null,""]
["R0111",null,null,""]
["R0112",null,null,""]
["R0113",null,null,""]
["R0114",null,null,""]
["R0115",null,null,""]
["R0116",null,null,""]
["R0117",null,null,""]
["R0118",null,null,""]
["R0119",null,null,""]
["R0120",null,null,""]
["R0121",null,null,""]
["R0122",null,null,""]
["R0123",null,null,""]
["R0124",null,null,""]
["R0125",null,null,""]
["R0126",null,null,""]
["R0127",null,null,""]
["R0128",null,null,""]
["R0129",null,null,""]
["R0130",null,null,{"$f":"IF(ISBLANK(C131),\"\",1)","v":""}]
["R0131",null,null,""]
["R0132",null,null,""]
["R0133",null,null,""]
["R0134",null,null,""]
["R0135",null,null,""]
["R0136",null,null,""]
["R0137",null,null,""]
["R0138",null,null,""]
["R0139",null,null,""]
["R0140",null,null,""]
["R0141",null,null,""]
["R0142",null,null,""]
["R0143",null,null,""]
["R0144",null,null,""]
["R0145",null,null,""]
["R0146",null,null,""]
["R0147",null,null,""]
["R0148",null,null,""]
["R0149",null,null,""]
["R0150",null,null,""]
["R0151",null,null,""]
["R0152",null,null,""]
["R0153",null,null,""]
["R0154",null,null,""]
["R0155",null,null,""]
["R0156",null,null,""]
["R0157",null,null,""]
["R0158",null,null,""]
["R0159",null,null,""]
["R0160",null,null,""]
["R0161",null,null,""]
["R0162",null,null,""]
["R0163",null,null,""]
["R0164",null,null,""]
["R0165",null,null,""]
["R0166",null,null,""]
["R0167",null,null,""]
["R0168",null,null,""]
["R0169",null,null,""]
["R0170",null,null,""]
["R0171",null,null,""]
["R0172",null,null,""]
["R0173",null,null,""]
["R0174",null,null,""]
["R0175",null,null,""]
["R0176",null,null,""]
["R0177",null,null,""]
["R0178",null,null,""]
["R0179",null,null,""]
["R0180",null,null,""]
["R0181",null,null,""]
["R0182",null,null,""]
["R0183",null,null,""]
["R0184",null,null,""]
["R0185",null,null,""]
["R0186",null,null,""]
["R0187",null,null,""]
["R0188",null,null,""]
["R0189",null,null,""]
["R0190",null,null,""]
["R0191",null,null,""]
["R0192",null,null,""]
["R0193",null,null,""]
["R0194",null,null,{"$f":"IF(ISBLANK(C195),\"\",1)","v":""}]
["R0195",null,null,""]
["R0196",null,null,""]
["R0197",null,null,""]
["R0198",null,null,""]
["R0199",null,null,""]
["R0200",null,null,""]
["R0201",null,null,""]
["R0202",null,null,""]
["R0203",null,null,""]
["R0204",null,null,""]
["R0205",null,null,""]
["R0206",null,null,""]
["R0207",null,null,""]
["R0208",null,null,""]
["R0209",null,null,""]
["R0210",null,null,""]
["R0211",null,null,""]
["R0212",null,null,""]
["R0213",null,null,""]
["R0214",null,null,""]
["R0215",null,null,""]
["R0216",null,null,""]
["R0217",null,null,""]
["R0218",null,null,""]
["R0219",null,null,""]
["R0220",null,null,""]
["R0221",null,null,""]
["R0222",null,null,""]
["R0223",null,null,""]
["R0224",null,null,""]
["R0225",null,null,""]
["R0226",null,null,""]
["R0227",null,null,""]
["R0228",null,null,""]
["R0229",null,null,""]
["R0230",null,null,""]
["R0231",null,null,""]
["R0232",null,null,""]
["R0233",null,null,""]
["R0234",null,null,""]
["R0235",null,null,""]
["R0236",null,null,""]
["R0237",null,null,""]
["R0238",null,null,""]
["R0239",null,null,""]
["R0240",null,null,""]
["R0241",null,null,""]
["R0242",null,null,""]
["R0243",null,null,""]
["R0244",null,null,""]
["R0245",null,null,""]
["R0246",null,null,""]
["R0247",null,null,""]
["R0248",null,null,""]
["R0249",null,null,""]
["R0250",null,null,""]
["R0251",null,null,""]
["R0252",null,null,""]
["R0253",null,null,""]
["R0254",null,null,""]
["R0255",null,null,""]
["R0256",null,null,""]
["R0257",null,null,""]
["R0258",null,null,{"$f":"IF(ISBLANK(C259),\"\",1)","v":""}]
["R0259",null,null,""]
["R0260",null,null,""]
["R0261",null,null,""]
["R0262",null,null,""]
["R0263",null,null,""]
["R0264",null,null,""]
["R0265",null,null,""]
["R0266",null,null,""]
["R0267",null,null,""]
["R0268",null,null,""]
["R0269",null,null,""]
["R0270",null,null,""]
["R0271",null,null,""]
["R0272",null,null,""]
["R0273",null,null,""]
["R0274",null,null,""]
["R0275",null,null,""]
["R0276",null,null,""]
["R0277",null,null,""]
["R0278",null,null,""]
["R0279",null,null,""]
["R0280",null,null,""]
["R0281",null,null,""]
["R0282",null,null,""]
["R0283",null,null,""]
["R0284",null,null,""]
["R0285",null,null,""]
["R0286",null,null,""]
["R0287",null,null,""]
["R0288",null,null,""]
["R0289",null,null,""]
["R0290",null,null,""]
["R0291",null,null,""]
["R0292",null,null,""]
["R0293",null,null,""]
["R0294",null,null,""]
["R0295",null,null,""]
["R0296",null,null,""]
["R0297",null,null,""]
["R0298",null,null,""]
["R0299",null,null,""]
["R0300",null,null,""]
["R0301",null,null,""]
["R0302",null,null,""]
["R0303",null,null,""]
["R0304",null,null,""]
["R0305",null,null,""]
["R0306",null,null,""]
["R0307",null,null,""]
["R0308",null,null,""]
["R0309",null,null,""]
["R0310",null,null,""]
["R0311",null,null,""]
["R0312",null,null,""]
["R0313",null,null,""]
["R0314",null,null,""]
["R0315",null,null,""]
["R0316",null,null,""]
["R0317",null,null,""]
["R0318",null,null,""]
["R0319",null,null,""]
["R0320",null,null,""]
["R0321",null,null,""]
["R0322",null,null,{"$f":"IF(ISBLANK(C323),\"\",1)","v":""}]
["R0323",null,null,""]
["R0324",null,null,""]
["R0325",null,null,""]
["R0326",null,null,""]
["R0327",null,null,""]
["R0328",null,null,""]
["R0329",null,null,""]
["R0330",null,null,""]
["R0331",null,null,""]
["R0332",null,null,""]
["R0333",null,null,""]
["R0334",null,null,""]
["R0335",null,null,""]
["R0336",null,null,""]
["R0337",null,null,""]
["R0338",null,null,""]
["R0339",null,null,""]
["R0340",null,null,""]
["R0341",null,null,""]
["R0342",null,null,""]
["R0343",null,null,""]
["R0344",null,null,""]
["R0345",null,null,""]
["R0346",null,null,""]
["R0347",null,null,""]
["R0348",null,null,""]
["R0349",null,null,""]
["R0350",null,null,""]
["R0351",null,null,""]
["R0352",null,null,""]
["R0353",null,null,""]
["R0354",null,null,""]
["R0355",null,null,""]
["R0356",null,null,""]
["R0357",null,null,""]
["R0358",null,null,""]
["R0359",null,null,""]
["R0360",null,null,""]
["R0361",null,null,""]
["R0362",null,null,""]
["R0363",null,null,""]
["R0364",null,null,""]
["R0365",null,null,""]
["R0366",null,null,""]
["R0367",null,null,""]
["R0368",null,null,""]
["R0369",null,null,""]
["R0370",null,null,""]
["R0371",null,null,""]
["R0372",null,null,""]
["R0373",null,null,""]
["R0374",null,null,""]
["R0375",null,null,""]
["R0376",null,null,""]
["R0377",null,null,""]
["R0378",null,null,""]
["R0379",null,null,""]
["R0380",null,null,""]
["R0381",null,null,""]
["R0382",null,null,""]
["R0383",null,null,""]
["R0384",null,null,""]
["R0385",null,null,""]
["R0386",null,null,{"$f":"IF(ISBLANK(C387),\"\",1)","v":""}]
["R0387",null,null,""]
["R0388",null,null,""]
["R0389",null,null,""]
["R0390",null,null,""]
["R0391",null,null,""]
["R0392",null,null,""]
["R0393",null,null,""]
["R0394",null,null,""]
["R0395",null,null,""]
["R0396",null,null,""]
["R0397",null,null,""]
["R0398",null,null,""]
["R0399",null,null,""]
["R0400",null,null,""]
["R0401",null,null,""]
["R0402",null,null,""]
["R0403",null,null,""]
["R0404",null,null,""]
["R0405",null,null,""]
["R0406",null,null,""]
["R0407",null,null,""]
["R0408",null,null,""]
["R0409",null,null,""]
["R0410",null,null,""]
["R0411",null,null,""]
["R0412",null,null,""]
["R0413",null,null,""]
["R0414",null,null,""]
["R0415",null,null,""]
["R0416",null,null,""]
["R0417",null,null,""]
["R0418",null,null,""]
["R0419",null,null,""]
["R0420",null,null,""]
["R0421",null,null,""]
["R0422",null,null,""]
["R0423",null,null,""]
["R0424",null,null,""]
["R0425",null,null,""]
["R0426",null,null,""]
["R0427",null,null,""]
["R0428",null,null,""]
["R0429",null,null,""]
["R0430",null,null,""]
["R0431",null,null,""]
["R0432",null,null,""]
["R0433",null,null,""]
["R0434",null,null,""]
["R0435",null,null,""]
["R0436",null,null,""]
["R0437",null,null,""]
["R0438",null,null,""]
["R0439",null,null,""]
["R0440",null,null,""]
["R0441",null,null,""]
["R0442",null,null,""]
["R0443",null,null,""]
["R0444",null,null,""]
["R0445",null,null,""]
["R0446",null,null,""]
["R0447",null,null,""]
["R0448",null,null,""]
["R0449",null,null,""]
["R0450",null,null,{"$f":"IF(ISBLANK(C451),\"\",1)","v":""}]
["R0451",null,null,""]
["R0452",null,null,""]
["R0453",null,null,""]
["R0454",null,null,""]
["R0455",null,null,""]
["R0456",null,null,""]
["R0457",null,null,""]
["R0458",null,null,""]
["R0459",null,null,""]
["R0460",null,null,""]
["R0461",null,null,""]
["R0462",null,null,""]
["R0463",null,null,""]
["R0464",null,null,""]
["R0465",null,null,""]
["R0466",null,null,""]
["R0467",null,null,""]
["R0468",null,null,""]
["R0469",null,null,""]
["R0470",null,null,""]
["R0471",null,null,""]
["R0472",null,null,""]
["R0473",null,null,""]
["R0474",null,null,""]
["R0475",null,null,""]
["R0476",null,null,""]
["R0477",null,null,""]
["R0478",null,null,""]
["R0479",null,null,""]
["R0480",null,null,""]
["R0481",null,null,""]
["R0482",null,null,""]
["R0483",null,null,""]
["R0484",null,null,""]
["R0485",null,null,""]
["R0486",null,null,""]
["R0487",null,null,""]
["R0488",null,null,""]
["R0489",null,null,""]
["R0490",null,null,""]
["R0491",null,null,""]
["R0492",null,null,""]
["R0493",null,null,""]
["R0494",null,null,""]
["R0495",null,null,""]
["R0496",null,null,""]
["R0497",null,null,""]
["R0498",null,null,""]
["R0499",null,null,""]
["R0500",null,null,""]
["R0501",null,null,""]
["R0502",null,null,""]
["R0503",null,null,""]
["R0504",null,null,""]
["R0505",null,null,""]
["R0506",null,null,""]
["R0507",null,null,""]
["R0508",null,null,""]
["R0509",null,null,""]
["R0510",null,null,""]
["R0511",null,null,""]
["R0512",null,null,""]
["R0513",null,null,""]
["R0514",null,null,{"$f":"IF(ISBLANK(C515),\"\",1)","v":""}]
["R0515",null,null,""]
["R0516",null,null,""]
["R0517",null,null,""]
["R0518",null,null,""]
["R0519",null,null,""]
["R0520",null,null,""]
["R0521",null,null,""]
["R0522",null,null,""]
["R0523",null,null,""]
["R0524",null,null,""]
["R0525",null,null,""]
["R0526",null,null,""]
["R0527",null,null,""]
["R0528",null,null,""]
["R0529",null,null,""]
["R0530",null,null,""]
["R0531",null,null,""]
["R0532",null,null,""]
["R0533",null,null,""]
["R0534",null,null,""]
["R0535",null,null,""]
["R0536",null,null,""]
["R0537",null,null,""]
["R0538",null,null,""]
["R0539",null,null,""]
["R0540",null,null,""]
["R0541",null,null,""]
["R0542",null,null,""]
["R0543",null,null,""]
["R0544",null,null,""]
["R0545",null,null,""]
["R0546",null,null,""]
["R0547",null,null,""]
["R0548",null,null,""]
["R0549",null,null,""]
["R0550",null,null,""]
["R0551",null,null,""]
["R0552",null,null,""]
["R0553",null,null,""]
["R0554",null,null,""]
["R0555",null,null,""]
["R0556",null,null,""]
["R0557",null,null,""]
["R0558",null,null,""]
["R0559",null,null,""]
["R0560",null,null,""]
["R0561",null,null,""]
["R0562",null,null,""]
["R0563",null,null,""]
["R0564",null,null,""]
["R0565",null,null,""]
["R0566",null,null,""]
["R0567",null,null,""]
["R0568",null,null,""]
["R0569",null,null,""]
["R0570",null,null,""]
["R0571",null,null,""]
["R0572",null,null,""]
["R0573",null,null,""]
["R0574",null,null,""]
["R0575",null,null,""]
["R0576",null,null,""]
["R0577",null,null,""]
["R0578",null,null,{"$f":"IF(ISBLANK(C579),\"\",1)","v":""}]
["R0579",null,null,""]
["R0580",null,null,""]
["R0581",null,null,""]
["R0582",null,null,""]
["R0583",null,null,""]
["R0584",null,null,""]
["R0585",null,null,""]
["R0586",null,null,""]
["R0587",null,null,""]
["R0588",null,null,""]
["R0589",null,null,""]
["R0590",null,null,""]
["R0591",null,null,""]
["R0592",null,null,""]
["R0593",null,null,""]
["R0594",null,null,""]
["R0595",null,null,""]
["R0596",null,null,""]
["R0597",null,null,""]
["R0598",null,null,""]
["R0599",null,null,""]
["R0600",null,null,""]
["R0601",null,null,""]
["R0602",null,null,""]
["R0603",null,null,""]
["R0604",null,null,""]
["R0605",null,null,""]
["R0606",null,null,""]
["R0607",null,null,""]
["R0608",null,null,""]
["R0609",null,null,""]
["R0610",null,null,""]
["R0611",null,null,""]
["R0612",null,null,""]
["R0613",null,null,""]
["R0614",null,null,""]
["R0615",null,null,""]
["R0616",null,null,""]
["R0617",null,null,""]
["R0618",null,null,""]
["R0619",null,null,""]
["R0620",null,null,""]
["R0621",null,null,""]
["R0622",null,null,""]
["R0623",null,null,""]
["R0624",null,null,""]
["R0625",null,null,""]
["R0626",null,null,""]
["R0627",null,null,""]
["R0628",null,null,""]
["R0629",null,null,""]
["R0630",null,null,""]
["R0631",null,null,""]
["R0632",null,null,""]
["R0633",null,null,""]
["R0634",null,null,""]
["R0635",null,null,""]
["R0636",null,null,""]
["R0637",null,null,""]
["R0638",null,null,""]
["R0639",null,null,""]
["R0640",null,null,""]
["R0641",null,null,""]
["R0642",null,null,{"$f":"IF(ISBLANK(C643),\"\",1)","v":""}]
["R0643",null,null,""]
["R0644",null,null,""]
["R0645",null,null,""]
["R0646",null,null,""]
["R0647",null,null,""]
["R0648",null,null,""]
["R0649",null,null,""]
["R0650",null,null,""]
["R0651",null,null,""]
["R0652",null,null,""]
["R0653",null,null,""]
["R0654",null,null,""]
["R0655",null,null,""]
["R0656",null,null,""]
["R0657",null,null,""]
["R0658",null,null,""]
["R0659",null,null,""]
["R0660",null,null,""]
["R0661",null,null,""]
["R0662",null,null,""]
["R0663",null,null,""]
["R0664",null,null,""]
["R0665",null,null,""]
["R0666",null,null,""]
["R0667",null,null,""]
["R0668",null,null,""]
["R0669",null,null,""]
["R0670",null,null,""]
["R0671",null,null,""]
["R0672",null,null,""]
["R0673",null,null,""]
["R0674",null,null,""]
["R0675",null,null,""]
["R0676",null,null,""]
["R0677",null,null,""]
["R0678",null,null,""]
["R0679",null,null,""]
["R0680",null,null,""]
["R0681",null,null,""]
["R0682",null,null,""]
["R0683",null,null,""]
["R0684",null,null,""]
["R0685",null,null,""]
["R0686",null,null,""]
["R0687",null,null,""]
["R0688",null,null,""]
["R0689",null,null,""]
["R0690",null,null,""]
["R0691",null,null,""]
["R0692",null,null,""]
["R0693",null,null,""]
["R0694",null,null,""]
["R0695",null,null,""]
["R0696",null,null,""]
["R0697",null,null,""]
["R0698",null,null,""]
["R0699",null,null,""]
["R0700",null,null,""]
["R0701",null,null,""]
["R0702",null,null,""]
["R0703",null,null,""]
["R0704",null,null,""]
["R0705",null,null,""]
["R0706",null,null,{"$f":"IF(ISBLANK(C707),\"\",1)","v":""}]
["R0707",null,null,""]
["R0708",null,null,""]
["R0709",null,null,""]
["R0710",null,null,""]
["R0711",null,null,""]
["R0712",null,null,""]
["R0713",null,null,""]
["R0714",null,null,""]
["R0715",null,null,""]
["R0716",null,null,""]
["R0717",null,null,""]
["R0718",null,null,""]
["R0719",null,null,""]
["R0720",null,null,""]
["R0721",null,null,""]
["R0722",null,null,""]
["R0723",null,null,""]
["R0724",null,null,""]
["R0725",null,null,""]
["R0726",null,null,""]
["R0727",null,null,""]
["R0728",null,null,""]
["R0729",null,null,""]
["R0730",null,null,""]
["R0731",null,null,""]
["R0732",null,null,""]
["R0733",null,null,""]
["R0734",null,null,""]
["R0735",null,null,""]
["R0736",null,null,""]
["R0737",null,null,""]
["R0738",null,null,""]
["R0739",null,null,""]
["R0740",null,null,""]
["R0741",null,null,""]
["R0742",null,null,""]
["R0743",null,null,""]
["R0744",null,null,""]
["R0745",null,null,""]
["R0746",null,null,""]
["R0747",null,null,""]
["R0748",null,null,""]
["R0749",null,null,""]
["R0750",null,null,""]
["R0751",null,null,""]
["R0752",null,null,""]
["R0753",null,null,""]
["R0754",null,null,""]
["R0755",null,null,""]
["R0756",null,null,""]
["R0757",null,null,""]
["R0758",null,null,""]
["R0759",null,null,""]
["R0760",null,null,""]
["R0761",null,null,""]
["R0762",null,null,""]
["R0763",null,null,""]
["R0764",null,null,""]
["R0765",null,null,""]
["R0766",null,null,""]
["R0767",null,null,""]
["R0768",null,null,""]
["R0769",null,null,""]
["R0770",null,null,{"$f":"IF(ISBLANK(C771),\"\",1)","v":""}]
["R0771",null,null,""]
["R0772",null,null,""]
["R0773",null,null,""]
["R0774",null,null,""]
["R0775",null,null,""]
["R0776",null,null,""]
["R0777",null,null,""]
["R0778",null,null,""]
["R0779",null,null,""]
["R0780",null,null,""]
["R0781",null,null,""]
["R0782",null,null,""]
["R0783",null,null,""]
["R0784",null,null,""]
["R0785",null,null,""]
["R0786",null,null,""]
["R0787",null,null,""]
["R0788",null,null,""]
["R0789",null,null,""]
["R0790",null,null,""]
["R0791",null,null,""]
["R0792",null,null,""]
["R0793",null,null,""]
["R0794",null,null,""]
["R0795",null,null,""]
["R0796",null,null,""]
["R0797",null,null,""]
["R0798",null,null,""]
["R0799",null,null,""]
["R0800",null,null,""]
["R0801",null,null,""]
["R0802",null,null,""]
["R0803",null,null,""]
["R0804",null,null,""]
["R0805",null,null,""]
["R0806",null,null,""]
["R0807",null,null,""]
["R0808",null,null,""]
["R0809",null,null,""]
["R0810",null,null,""]
["R0811",null,null,""]
["R0812",null,null,""]
["R0813",null,null,""]
["R0814",null,null,""]
["R0815",null,null,""]
["R0816",null,null,""]
["R0817",null,null,""]
["R0818",null,null,""]
["R0819",null,null,""]
["R0820",null,null,""]
["R0821",null,null,""]
["R0822",null,null,""]
["R0823",null,null,""]
["R0824",null,null,""]
["R0825",null,null,""]
["R0826",null,null,""]
["R0827",null,null,""]
["R0828",null,null,""]
["R0829",null,null,""]
["R0830",null,null,""]
["R0831",null,null,""]
["R0832",null,null,""]
["R0833",null,null,""]
["R0834",null,null,{"$f":"IF(ISBLANK(C835),\"\",1)","v":""}]
["R0835",null,null,""]
["R0836",null,null,""]
["R0837",null,null,""]
["R0838",null,null,""]
["R0839",null,null,""]
["R0840",null,null,""]
["R0841",null,null,""]
["R0842",null,null,""]
["R0843",null,null,""]
["R0844",null,null,""]
["R0845",null,null,""]
["R0846",null,null,""]
["R0847",null,null,""]
["R0848",null,null,""]
["R0849",null,null,""]
["R0850",null,null,""]
["R0851",null,null,""]
["R0852",null,null,""]
["R0853",null,null,""]
["R0854",null,null,""]
["R0855",null,null,""]
["R0856",null,null,""]
["R0857",null,null,""]
["R0858",null,null,""]
["R0859",null,null,""]
["R0860",null,null,""]
["R0861",null,null,""]
["R0862",null,null,""]
["R0863",null,null,""]
["R0864",null,null,""]
["R0865",null,null,""]
["R0866",null,null,""]
["R0867",null,null,""]
["R0868",null,null,""]
["R0869",null,null,""]
["R0870",null,null,""]
["R0871",null,null,""]
["R0872",null,null,""]
["R0873",null,null,""]
["R0874",null,null,""]
["R0875",null,null,""]
["R0876",null,null,""]
["R0877",null,null,""]
["R0878",null,null,""]
["R0879",null,null,""]
["R0880",null,null,""]
["R0881",null,null,""]
["R0882",null,null,""]
["R0883",null,null,""]
["R0884",null,null,""]
["R0885",null,null,""]
["R0886",null,null,""]
["R0887",null,null,""]
["R0888",null,null,""]
["R0889",null,null,""]
["R0890",null,null,""]
["R0891",null,null,""]
["R0892",null,null,""]
["R0893",null,null,""]
["R0894",null,null,""]
["R0895",null,null,""]
["R0896",null,null,""]
["R0897",null,null,""]
["R0898",null,null,{"$f":"IF(ISBLANK(C899),\"\",1)","v":""}]
["R0899",null,null,""]
["R0900",null,null,""]
["R0901",null,null,""]
["R0902",null,null,""]
["R0903",null,null,""]
["R0904",null,null,""]
["R0905",null,null,""]
["R0906",null,null,""]
["R0907",null,null,""]
["R0908",null,null,""]
["R0909",null,null,""]
["R0910",null,null,""]
["R0911",null,null,""]
["R0912",null,null,""]
["R0913",null,null,""]
["R0914",null,null,""]
["R0915",null,null,""]
["R0916",null,null,""]
["R0917",null,null,""]
["R0918",null,null,""]
["R0919",null,null,""]
["R0920",null,null,""]
["R0921",null,null,""]
["R0922",null,null,""]
["R0923",null,null,""]
["R0924",null,null,""]
["R0925",null,null,""]
["R0926",null,null,""]
["R0927",null,null,""]
["R0928",null,null,""]
["R0929",null,null,""]
["R0930",null,null,""]
["R0931",null,null,""]
["R0932",null,null,""]
["R0933",null,null,""]
["R0934",null,null,""]
["R0935",null,null,""]
["R0936",null,null,""]
["R0937",null,null,""]
["R0938",null,null,""]
["R0939",null,null,""]
["R0940",null,null,""]
["R0941",null,null,""]
["R0942",null,null,""]
["R0943",null,null,""]
["R0944",null,null,""]
["R0945",null,null,""]
["R0946",null,null,""]
["R0947",null,null,""]
["R0948",null,null,""]
["R0949",null,null,""]
["R0950",null,null,""]
["R0951",null,null,""]
["R0952",null,null,""]
["R0953",null,null,""]
["R0954",null,null,""]
["R0955",null,null,""]
["R0956",null,null,""]
["R0957",null,null,""]
["R0958",null,null,""]
["R0959",null,null,""]
["R0960",null,null,""]
["R0961",null,null,""]
["R0962",null,null,{"$f":"IF(ISBLANK(C963),\"\",1)","v":""}]
["R0963",null,null,""]
["R0964",null,null,""]
["R0965",null,null,""]
["R0966",null,null,""]
["R0967",null,null,""]
["R0968",null,null,""]
["R0969",null,null,""]
["R0970",null,null,""]
["R0971",null,null,""]
["R0972",null,null,""]
["R0973",null,null,""]
["R0974",null,null,""]
["R0975",null,null,""]
["R0976",null,null,""]
["R0977",null,null,""]
["R0978",null,null,""]
["R0979",null,null,""]
["R0980",null,null,""]
["R0981",null,null,""]
["R0982",null,null,""]
["R0983",null,null,""]
["R0984",null,null,""]
["R0985",null,null,""]
["R0986",null,null,""]
["R0987",null,null,""]
["R0988",null,null,""]
["R0989",null,null,""]
["R0990",null,null,""]
["R0991",null,null,""]
["R0992",null,null,""]
["R0993",null,null,""]
["R0994",null,null,""]
["R0995",null,null,""]
["R0996",null,null,""]
["R0997",null,null,""]
["R0998",null,null,""]
["R0999",null,null,""]
["R1000",null,null,""]
[null,null,null,""]
[null,null,null,""]
[null,null,null,""]
[null,null,null,""]
[null,null,null,""]
[null,null,null,""]
[null,null,null,""]
[null,null,null,""]
[null,null,null,""]
[null,null,null,""]
[null,null,null,""]
[null,null,null,""]
[null,null,null,""]
[null,null,null,""]
[null,null,null,""]
[null,null,null,""]
[null,null,null,""]
[null,null,null,""]
[null,null,null,""]
[null,null,null,""]
[null,null,null,""]
[null,null,null,""]
[null,null,null,""]
[null,null,null,""]
[null,null,null,""]
[null,null,null,{"$f":"IF(ISBLANK(C1027),\"\",1)","v":""}]
[null,null,null,""]
[null,null,null,""]
[null,null,null,""]
[null,null,null,""]
[null,null,null,""]
[null,null,null,""]
[null,null,null,""]
[null,null,null,""]
[null,null,null,""]
[null,null,null,""]
[null,null,null,""]
[null,null,null,""]
[null,null,null,""]
[null,null,null,""]
[null,null,null,""]
[null,null,null,""]
[null,null,null,""]
[null,null,null,""]
[null,null,null,""]
[null,null,null,""]
[null,null,null,""]
[null,null,null,""]
[null,null,null,""]
[null,null,null,""]
[null,null,null,""]
[null,null,null,""]
[null,null,null,""]
[null,null,null,""]
[null,null,null,""]
[null,null,null,""]
[null,null,null,""]
[null,null,null,""]
[null,null,null,""]
[null,null,null,""]
[null,null,null,""]
[null,null,null,""]
[null,null,null,""]
[null,null,null,""]
[null,null,null,""]
[null,null,null,""]
[null,null,null,""]
[null,null,null,""]
[null,null,null,""]
[null,null,null,""]
[null,null,null,""]
[null,null,null,""]
[null,null,null,""]
[null,null,null,""]
[null,null,null,""]
[null,null,null,""]
[null,null,null,""]
[null,null,null,""]
[null,null,null,""]
[null,null,null,""]
[null,null,null,""]
[null,null,null,""]
[null,null,null,""]
[null,null,null,""]
[null,null,null,""]
[null,null,null,""]
[null,null,null,""]
[null,null,null,""]
[null,null,null,""]
[null,null,null,{"$f":"IF(ISBLANK(C1091),\"\",1)","v":""}]
[null,null,null,""]
[null,null,null,""]
[null,null,null,""]
[null,null,null,""]
[null,null,null,""]
[null,null,null,""]
[null,null,null,""]
[null,null,null,""]
[null,null,null,""]
[null,null,null,""]
[null,null,null,""]
[null,null,null,""]
[null,null,null,""]
[null,null,null,""]
[null,null,null,""]
[null,null,null,""]
[null,null,null,""]
[null,null,null,""]
[null,null,null,""]
[null,null,null,""]
[null,null,null,""]
[null,null,null,""]
[null,null,null,""]
[null,null,null,""]
[null,null,null,""]
[null,null,null,""]
[null,null,null,""]
[null,null,null,""]
[null,null,null,""]
[null,null,null,""]
[null,null,null,""]
[null,null,null,""]
[null,null,null,""]
[null,null,null,""]
[null,null,null,""]
[null,null,null,""]
[null,null,null,""]
[null,null,null,""]
[null,null,null,""]
[null,null,null,""]
[null,null,null,""]
[null,null,null,""]
[null,null,null,""]
[null,null,null,""]
[null,null,null,""]
[null,null,null,""]
[null,null,null,""]
[null,null,null,""]
[null,null,null,""]
[null,null,null,""]
[null,null,null,""]
[null,null,null,""]
[null,null,null,""]
[null,null,null,""]
[null,null,null,""]
[null,null,null,""]
[null,null,null,""]
[null,null,null,""]
[null,null,null,""]
[null,null,null,""]
[null,null,null,""]
[null,null,null,""]
[null,null,null,""]
[null,null,null,{"$f":"IF(ISBLANK(C1155),\"\",1)","v":""}]
[null,null,null,""]
[null,null,null,""]
[null,null,null,""]
[null,null,null,""]
[null,null,null,""]
[null,null,null,""]
[null,null,null,""]
[null,null,null,""]
[null,null,null,""]
[null,null,null,""]
[null,null,null,""]
[null,null,null,""]
[null,null,null,""]
[null,null,null,""]
[null,null,null,""]
[null,null,null,""]
[null,null,null,""]
[null,null,null,""]
[null,null,null,""]
[null,null,null,""]
[null,null,null,""]
[null,null,null,""]
[null,null,null,""]
[null,null,null,""]
[null,null,null,""]
[null,null,null,""]
[null,null,null,""]
[null,null,null,""]
[null,null,null,""]
[null,null,null,""]
[null,null,null,""]
[null,null,null,""]
[null,null,null,""]
[null,null,null,""]
[null,null,null,""]
[null,null,null,""]
[null,null,null,""]
[null,null,null,""]
[null,null,null,""]
[null,null,null,""]
[null,null,null,""]
[null,null,null,""]
[null,null,null,""]
[null,null,null,""]
[null,null,null,""]
[null,null,null,""]
[null,null,null,""]
[null,null,null,""]
[null,null,null,""]
[null,null,null,""]
[null,null,null,""]
[null,null,null,""]
[null,null,null,""]
[null,null,null,""]
[null,null,null,""]
[null,null,null,""]
[null,null,null,""]
[null,null,null,""]
[null,null,null,""]
[null,null,null,""]
[null,null,null,""]
[null,null,null,""]
[null,null,null,""]
[null,null,null,{"$f":"IF(ISBLANK(C1219),\"\",1)","v":""}]
[null,null,null,""]
[null,null,null,""]
[null,null,null,""]
[null,null,null,""]
[null,null,null,""]
[null,null,null,""]
[null,null,null,""]
[null,null,null,""]
[null,null,null,""]
[null,null,null,""]
[null,null,null,""]
[null,null,null,""]
[null,null,null,""]
[null,null,null,""]
[null,null,null,""]
[null,null,null,""]
[null,null,null,""]
[null,null,null,""]
[null,null,null,""]
[null,null,null,""]
[null,null,null,""]
[null,null,null,""]
[null,null,null,""]
[null,null,null,""]
[null,null,null,""]
[null,null,null,""]
[null,null,null,""]
[null,null,null,""]
[null,null,null,""]
[null,null,null,""]
[null,null,null,""]
[null,null,null,""]
[null,null,null,""]
[null,null,null,""]
[null,null,null,""]
[null,null,null,""]
[null,null,null,""]
[null,null,null,""]
[null,null,null,""]
[null,null,null,""]
[null,null,null,""]
[null,null,null,""]
[null,null,null,""]
[null,null,null,""]
[null,null,null,""]
[null,null,null,""]
[null,null,null,""]
[null,null,null,""]
[null,null,null,""]
[null,null,null,""]
[null,null,null,""]
[null,null,null,""]
[null,null,null,""]
[null,null,null,""]
[null,null,null,""]
[null,null,null,""]
[null,null,null,""]
[null,null,null,""]
[null,null,null,""]
[null,null,null,""]
[null,null,null,""]
[null,null,null,""]
[null,null,null,""]
[null,null,null,{"$f":"IF(ISBLANK(C1283),\"\",1)","v":""}]
[null,null,null,""]
[null,null,null,""]
[null,null,null,""]
[null,null,null,""]
[null,null,null,""]
[null,null,null,""]
[null,null,null,""]
[null,null,null,""]
[null,null,null,""]
[null,null,null,""]
[null,null,null,""]
[null,null,null,""]
[null,null,null,""]
[null,null,null,""]
[null,null,null,""]
[null,null,null,""]
[null,null,null,""]
[null,null,null,""]
[null,null,null,""]
[null,null,null,""]
[null,null,null,""]
[null,null,null,""]
[null,null,null,""]
[null,null,null,""]
[null,null,null,""]
[null,null,null,""]
[null,null,null,""]
[null,null,null,""]
[null,null,null,""]
[null,null,null,""]
[null,null,null,""]
[null,null,null,""]
[null,null,null,""]
[null,null,null,""]
[null,null,null,""]
[null,null,null,""]
[null,null,null,""]
[null,null,null,""]
[null,null,null,""]
[null,null,null,""]
[null,null,null,""]
[null,null,null,""]
[null,null,null,""]
[null,null,null,""]
[null,null,null,""]
[null,null,null,""]
[null,null,null,""]
[null,null,null,""]
[null,null,null,""]
[null,null,null,""]
[null,null,null,""]
[null,null,null,""]
[null,null,null,""]
[null,null,null,""]
[null,null,null,""]
[null,null,null,""]
[null,null,null,""]
[null,null,null,""]
[null,null,null,""]
[null,null,null,""]
[null,null,null,""]
[null,null,null,""]
[null,null,null,""]
[null,null,null,{"$f":"IF(ISBLANK(C1347),\"\",1)","v":""}]
[null,null,null,""]
[null,null,null,""]
[null,null,null,""]
[null,null,null,""]
[null,null,null,""]
[null,null,null,""]
[null,null,null,""]
[null,null,null,""]
[null,null,null,""]
[null,null,null,""]
[null,null,null,""]
[null,null,null,""]
[null,null,null,""]
[null,null,null,""]
[null,null,null,""]
[null,null,null,""]
[null,null,null,""]
[null,null,null,""]
[null,null,null,""]
[null,null,null,""]
[null,null,null,""]
[null,null,null,""]
[null,null,null,""]
[null,null,null,""]
[null,null,null,""]
[null,null,null,""]
[null,null,null,""]
[null,null,null,""]
[null,null,null,""]
[null,null,null,""]
[null,null,null,""]
[null,null,null,""]
[null,null,null,""]
[null,null,null,""]
[null,null,null,""]
[null,null,null,""]
[null,null,null,""]
[null,null,null,""]
[null,null,null,""]
[null,null,null,""]
[null,null,null,""]
[null,null,null,""]
[null,null,null,""]
[null,null,null,""]
[null,null,null,""]
[null,null,null,""]
[null,null,null,""]
[null,null,null,""]
[null,null,null,""]
[null,null,null,""]
[null,null,null,""]
[null,null,null,""]
[null,null,null,""]
[null,null,null,""]
[null,null,null,""]
[null,null,null,""]
[null,null,null,""]
[null,null,null,""]
[null,null,null,""]
[null,null,null,""]
[null,null,null,""]
[null,null,null,""]
[null,null,null,""]
[null,null,null,{"$f":"IF(ISBLANK(C1411),\"\",1)","v":""}]
[null,null,null,""]
[null,null,null,""]
[null,null,null,""]
[null,null,null,""]
[null,null,null,""]
[null,null,null,""]
[null,null,null,""]
[null,null,null,""]
[null,null,null,""]
[null,null,null,""]
[null,null,null,""]
[null,null,null,""]
[null,null,null,""]
[null,null,null,""]
[null,null,null,""]
[null,null,null,""]
[null,null,null,""]
[null,null,null,""]
[null,null,null,""]
[null,null,null,""]
[null,null,null,""]
[null,null,null,""]
[null,null,null,""]
[null,null,null,""]
[null,null,null,""]
[null,null,null,""]
[null,null,null,""]
[null,null,null,""]
[null,null,null,""]
[null,null,null,""]
[null,null,null,""]
[null,null,null,""]
[null,null,null,""]
[null,null,null,""]
[null,null,null,""]
[null,null,null,""]
[null,null,null,""]
[null,null,null,""]
[null,null,null,""]
[null,null,null,""]
[null,null,null,""]
[null,null,null,""]
[null,null,null,""]
[null,null,null,""]
[null,null,null,""]
[null,null,null,""]
[null,null,null,""]
[null,null,null,""]
[null,null,null,""]
[null,null,null,""]
[null,null,null,""]
[null,null,null,""]
[null,null,null,""]
[null,null,null,""]
[null,null,null,""]
[null,null,null,""]
[null,null,null,""]
[null,null,null,""]
[null,null,null,""]
[null,null,null,""]
[null,null,null,""]
[null,null,null,""]
[null,null,null,""]
[null,null,null,{"$f":"IF(ISBLANK(C1475),\"\",1)","v":""}]
[null,null,null,""]
[null,null,null,""]
[null,null,null,""]
[null,null,null,""]
[null,null,null,""]
[null,null,null,""]
[null,null,null,""]
[null,null,null,""]
[null,null,null,""]
[null,null,null,""]
[null,null,null,""]
[null,null,null,""]
[null,null,null,""]
[null,null,null,""]
[null,null,null,""]
[null,null,null,""]
[null,null,null,""]
[null,null,null,""]
[null,null,null,""]
[null,null,null,""]
[null,null,null,""]
[null,null,null,""]
[null,null,null,""]
[null,null,null,""]
[null,null,null,""]
[null,null,null,""]
[null,null,null,""]
[null,null,null,""]
[null,null,null,""]
[null,null,null,""]
[null,null,null,""]
[null,null,null,""]
[null,null,null,""]
[null,null,null,""]
[null,null,null,""]
[null,null,null,""]
[null,null,null,""]
[null,null,null,""]
[null,null,null,""]
[null,null,null,""]
[null,null,null,""]
[null,null,null,""]
[null,null,null,""]
[null,null,null,""]
[null,null,null,""]
[null,null,null,""]
[null,null,null,""]
[null,null,null,""]
[null,null,null,""]
[null,null,null,""]
[null,null,null,""]
[null,null,null,""]
[null,null,null,""]
[null,null,null,""]
[null,null,null,""]
[null,null,null,""]
[null,null,null,""]
[null,null,null,""]
[null,null,null,""]
[null,null,null,""]
[null,null,null,""]
[null,null,null,""]
[null,null,null,""]
[null,null,null,{"$f":"IF(ISBLANK(C1539),\"\",1)","v":""}]
[null,null,null,""]
[null,null,null,""]
[null,null,null,""]
[null,null,null,""]
[null,null,null,""]
[null,null,null,""]
[null,null,null,""]
[null,null,null,""]
[null,null,null,""]
[null,null,null,""]
[null,null,null,""]
[null,null,null,""]
[null,null,null,""]
[null,null,null,""]
[null,null,null,""]
[null,null,null,""]
[null,null,null,""]
[null,null,null,""]
[null,null,null,""]
[null,null,null,""]
[null,null,null,""]
[null,null,null,""]
[null,null,null,""]
[null,null,null,""]
[null,null,null,""]
[null,null,null,""]
[null,null,null,""]
[null,null,null,""]
[null,null,null,""]
[null,null,null,""]
[null,null,null,""]
[null,null,null,""]
[null,null,null,""]
[null,null,null,""]
[null,null,null,""]
[null,null,null,""]
[null,null,null,""]
[null,null,null,""]
[null,null,null,""]
[null,null,null,""]
[null,null,null,""]
[null,null,null,""]
[null,null,null,""]
[null,null,null,""]
[null,null,null,""]
[null,null,null,""]
[null,null,null,""]
[null,null,null,""]
[null,null,null,""]
[null,null,null,""]
[null,null,null,""]
[null,null,null,""]
[null,null,null,""]
[null,null,null,""]
[null,null,null,""]
[null,null,null,""]
[null,null,null,""]
[null,null,null,""]
[null,null,null,""]
[null,null,null,""]
[null,null,null,""]
[null,null,null,""]
[null,null,null,""]
[null,null,null,{"$f":"IF(ISBLANK(C1603),\"\",1)","v":""}]
[null,null,null,""]
[null,null,null,""]
[null,null,null,""]
[null,null,null,""]
[null,null,null,""]
[null,null,null,""]
[null,null,null,""]
[null,null,null,""]
[null,null,null,""]
[null,null,null,""]
[null,null,null,""]
[null,null,null,""]
[null,null,null,""]
[null,null,null,""]
[null,null,null,""]
[null,null,null,""]
[null,null,null,""]
[null,null,null,""]
[null,null,null,""]
[null,null,null,""]
[null,null,null,""]
[null,null,null,""]
[null,null,null,""]
[null,null,null,""]
[null,null,null,""]
[null,null,null,""]
[null,null,null,""]
[null,null,null,""]
[null,null,null,""]
[null,null,null,""]
[null,null,null,""]
[null,null,null,""]
[null,null,null,""]
[null,null,null,""]
[null,null,null,""]
[null,null,null,""]
[null,null,null,""]
[null,null,null,""]
[null,null,null,""]
[null,null,null,""]
[null,null,null,""]
[null,null,null,""]
[null,null,null,""]
[null,null,null,""]
[null,null,null,""]
[null,null,null,""]
[null,null,null,""]
[null,null,null,""]
[null,null,null,""]
[null,null,null,""]
[null,null,null,""]
[null,null,null,""]
[null,null,null,""]
[null,null,null,""]
[null,null,null,""]
[null,null,null,""]
[null,null,null,""]
[null,null,null,""]
[null,null,null,""]
[null,null,null,""]
[null,null,null,""]
[null,null,null,""]
[null,null,null,""]
[null,null,null,{"$f":"IF(ISBLANK(C1667),\"\",1)","v":""}]
[null,null,null,""]
[null,null,null,""]
[null,null,null,""]
[null,null,null,""]
[null,null,null,""]
[null,null,null,""]
[null,null,null,""]
[null,null,null,""]
[null,null,null,""]
[null,null,null,""]
[null,null,null,""]
[null,null,null,""]
[null,null,null,""]
[null,null,null,""]
[null,null,null,""]
[null,null,null,""]
[null,null,null,""]
[null,null,null,""]
[null,null,null,""]
[null,null,null,""]
[null,null,null,""]
[null,null,null,""]
[null,null,null,""]
[null,null,null,""]
[null,null,null,""]
[null,null,null,""]
[null,null,null,""]
[null,null,null,""]
[null,null,null,""]
[null,null,null,""]
[null,null,null,""]
[null,null,null,""]
[null,null,null,""]
[null,null,null,""]
[null,null,null,""]
[null,null,null,""]
[null,null,null,""]
[null,null,null,""]
[null,null,null,""]
[null,null,null,""]
[null,null,null,""]
[null,null,null,""]
[null,null,null,""]
[null,null,null,""]
[null,null,null,""]
[null,null,null,""]
[null,null,null,""]
[null,null,null,""]
[null,null,null,""]
[null,null,null,""]
[null,null,null,""]
[null,null,null,""]
[null,null,null,""]
[null,null,null,""]
[null,null,null,""]
[null,null,null,""]
[null,null,null,""]
[null,null,null,""]
[null,null,null,""]
[null,null,null,""]
[null,null,null,""]
[null,null,null,""]
[null,null,null,""]
[null,null,null,{"$f":"IF(ISBLANK(C1731),\"\",1)","v":""}]
[null,null,null,""]
[null,null,null,""]
[null,null,null,""]
[null,null,null,""]
[null,null,null,""]
[null,null,null,""]
[null,null,null,""]
[null,null,null,""]
[null,null,null,""]
[null,null,null,""]
[null,null,null,""]
[null,null,null,""]
[null,null,null,""]
[null,null,null,""]
[null,null,null,""]
[null,null,null,""]
[null,null,null,""]
[null,null,null,""]
[null,null,null,""]
[null,null,null,""]
[null,null,null,""]
[null,null,null,""]
[null,null,null,""]
[null,null,null,""]
[null,null,null,""]
[null,null,null,""]
[null,null,null,""]
[null,null,null,""]
[null,null,null,""]
[null,null,null,""]
[null,null,null,""]
[null,null,null,""]
[null,null,null,""]
[null,null,null,""]
[null,null,null,""]
[null,null,null,""]
[null,null,null,""]
[null,null,null,""]
[null,null,null,""]
[null,null,null,""]
[null,null,null,""]
[null,null,null,""]
[null,null,null,""]
[null,null,null,""]
[null,null,null,""]
[null,null,null,""]
[null,null,null,""]
[null,null,null,""]
[null,null,null,""]
[null,null,null,""]
[null,null,null,""]
[null,null,null,""]
[null,null,null,""]
[null,null,null,""]
[null,null,null,""]
[null,null,null,""]
[null,null,null,""]
[null,null,null,""]
[null,null,null,""]
[null,null,null,""]
[null,null,null,""]
[null,null,null,""]
[null,null,null,""]
[null,null,null,{"$f":"IF(ISBLANK(C1795),\"\",1)","v":""}]
[null,null,null,""]
[null,null,null,""]
[null,null,null,""]
[null,null,null,""]
[null,null,null,""]
[null,null,null,""]
[null,null,null,""]
[null,null,null,""]
[null,null,null,""]
[null,null,null,""]
[null,null,null,""]
[null,null,null,""]
[null,null,null,""]
[null,null,null,""]
[null,null,null,""]
[null,null,null,""]
[null,null,null,""]
[null,null,null,""]
[null,null,null,""]
[null,null,null,""]
[null,null,null,""]
[null,null,null,""]
[null,null,null,""]
[null,null,null,""]
[null,null,null,""]
[null,null,null,""]
[null,null,null,""]
[null,null,null,""]
[null,null,null,""]
[null,null,null,""]
[null,null,null,""]
[null,null,null,""]
[null,null,null,""]
[null,null,null,""]
[null,null,null,""]
[null,null,null,""]
[null,null,null,""]
[null,null,null,""]
[null,null,null,""]
[null,null,null,""]
[null,null,null,""]
[null,null,null,""]
[null,null,null,""]
[null,null,null,""]
[null,null,null,""]
[null,null,null,""]
[null,null,null,""]
[null,null,null,""]
[null,null,null,""]
[null,null,null,""]
[null,null,null,""]
[null,null,null,""]
[null,null,null,""]
[null,null,null,""]
[null,null,null,""]
[null,null,null,""]
[null,null,null,""]
[null,null,null,""]
[null,null,null,""]
[null,null,null,""]
[null,null,null,""]
[null,null,null,""]
[null,null,null,""]
[null,null,null,{"$f":"IF(ISBLANK(C1859),\"\",1)","v":""}]
[null,null,null,""]
[null,null,null,""]
[null,null,null,""]
[null,null,null,""]
[null,null,null,""]
[null,null,null,""]
[null,null,null,""]
[null,null,null,""]
[null,null,null,""]
[null,null,null,""]
[null,null,null,""]
[null,null,null,""]
[null,null,null,""]
[null,null,null,""]
[null,null,null,""]
[null,null,null,""]
[null,null,null,""]
[null,null,null,""]
[null,null,null,""]
[null,null,null,""]
[null,null,null,""]
[null,null,null,""]
[null,null,null,""]
[null,null,null,""]
[null,null,null,""]
[null,null,null,""]
[null,null,null,""]
[null,null,null,""]
[null,null,null,""]
[null,null,null,""]
[null,null,null,""]
[null,null,null,""]
[null,null,null,""]
[null,null,null,""]
[null,null,null,""]
[null,null,null,""]
[null,null,null,""]
[null,null,null,""]
[null,null,null,""]
[null,null,null,""]
[null,null,null,""]
[null,null,null,""]
[null,null,null,""]
[null,null,null,""]
[null,null,null,""]
[null,null,null,""]
[null,null,null,""]
[null,null,null,""]
[null,null,null,""]
[null,null,null,""]
[null,null,null,""]
[null,null,null,""]
[null,null,null,""]
[null,null,null,""]
[null,null,null,""]
[null,null,null,""]
[null,null,null,""]
[null,null,null,""]
[null,null,null,""]
[null,null,null,""]
[null,null,null,""]
[null,null,null,""]
[null,null,null,""]
[null,null,null,{"$f":"IF(ISBLANK(C1923),\"\",1)","v":""}]
[null,null,null,""]
[null,null,null,""]
[null,null,null,""]
[null,null,null,""]
[null,null,null,""]
[null,null,null,""]
[null,null,null,""]
[null,null,null,""]
[null,null,null,""]
[null,null,null,""]
[null,null,null,""]
[null,null,null,""]
[null,null,null,""]
[null,null,null,""]
[null,null,null,""]
[null,null,null,""]
[null,null,null,""]
[null,null,null,""]
[null,null,null,""]
[null,null,null,""]
[null,null,null,""]
[null,null,null,""]
[null,null,null,""]
[null,null,null,""]
[null,null,null,""]
[null,null,null,""]
[null,null,null,""]
[null,null,null,""]
[null,null,null,""]
[null,null,null,""]
[null,null,null,""]
[null,null,null,""]
[null,null,null,""]
[null,null,null,""]
[null,null,null,""]
[null,null,null,""]
[null,null,null,""]
[null,null,null,""]
[null,null,null,""]
[null,null,null,""]
[null,null,null,""]
[null,null,null,""]
[null,null,null,""]
[null,null,null,""]
[null,null,null,""]
[null,null,null,""]
[null,null,null,""]
[null,null,null,""]
[null,null,null,""]
[null,null,null,""]
[null,null,null,""]
[null,null,null,""]
[null,null,null,""]
[null,null,null,""]
[null,null,null,""]
[null,null,null,""]
[null,null,null,""]
[null,null,null,""]
[null,null,null,""]
[null,null,null,""]
[null,null,null,""]
[null,null,null,""]
[null,null,null,""]
[null,null,null,{"$f":"IF(ISBLANK(C1987),\"\",1)","v":""}]
[null,null,null,""]
[null,null,null,""]
[null,null,null,""]
[null,null,null,""]
[null,null,null,""]
[null,null,null,""]
[null,null,null,""]
[null,null,null,""]
[null,null,null,""]
[null,null,null,""]
[null,null,null,""]
[null,null,null,""]
[null,null,null,""]
[null,null,null,""]
[null,null,null,""]
[null,null,null,""]
[null,null,null,""]
[null,null,null,""]
[null,null,null,""]
[null,null,null,{"$f":"IF(ISBLANK(C5571),\"\",1)","v":""}]
[null,null,null,""]
[null,null,null,""]
[null,null,null,""]
[null,null,null,""]
[null,null,null,""]
[null,null,null,""]
[null,null,null,""]
[null,null,null,""]
[null,null,null,""]
[null,null,null,""]
[null,null,null,""]
[null,null,null,""]
[null,null,null,""]
[null,null,null,""]
[null,null,null,""]
[null,null,null,""]
[null,null,null,""]
[null,null,null,""]
[null,null,null,""]
[null,null,null,""]
[null,null,null,""]
[null,null,null,""]
[null,null,null,""]
[null,null,null,""]
[null,null,null,""]
[null,null,null,""]
[null,null,null,""]
[null,null,null,""]
[null,null,null,""]
[null,null,null,""]
[null,null,null,""]
[null,null,null,""]
[null,null,null,""]
[null,null,null,""]
[null,null,null,""]
[null,null,null,""]
[null,null,null,""]
[null,null,null,""]
[null,null,null,{"$f":"IF(ISBLANK(C25923),\"\",1)","v":""}]
[null,null,null,""]
[null,null,null,""]
[null,null,null,""]
[null,null,null,""]
[null,null,null,""]
[null,null,null,""]
[null,null,null,""]
[null,null,null,""]
[null,null,null,""]
[null,null,null,""]
[null,null,null,""]
[null,null,null,""]
[null,null,null,""]
[null,null,null,""]
[null,null,null,""]
[null,null,null,""]
[null,null,null,""]
[null,null,null,""]
[null,null,null,""]
[null,null,null,""]
[null,null,null,""]
[null,null,null,""]
[null,null,null,""]
[null,null,null,""]
[null,null,null,""]
[null,null,null,""]
[null,null,null,""]
[null,null,null,""]
[null,null,null,""]
[null,null,null,""]
[null,null,null,""]
[null,null,null,""]
[null,null,null,""]
[null,null,null,""]
[null,null,null,""]
[null,null,null,""]
[null,null,null,""]
[null,null,null,""]
[null,null,null,""]
[null,null,null,""]
[null,null,null,""]
[null,null,null,""]
[null,null,null,""]
[null,null,null,""]
[null,null,null,""]
[null,null,null,""]
[null,null,null,""]
[null,null,null,""]
[null,null,null,""]
[null,null,null,""]
[null,null,null,""]
[null,null,null,""]
[null,null,null,""]
[null,null,null,""]
[null,null,null,""]
[null,null,null,""]
[null,null,null,""]
[null,null,null,""]
[null,null,null,""]
[null,null,null,""]
[null,null,null,""]
[null,null,null,""]
[null,null,null,""]
[null,null,null,""]
[null,null,null,""]
[null,null,null,""]
[null,null,null,""]
[null,null,null,""]
[null,null,null,""]
[null,null,null,""]
[null,null,null,""]
[null,null,null,""]
[null,null,null,""]
[null,null,null,""]
[null,null,null,""]
[null,null,null,""]
[null,null,null,""]
[null,null,null,""]
[null,null,null,""]
[null,null,null,""]
[null,null,null,""]
[null,null,null,""]
[null,null,null,""]
[null,null,null,""]
[null,null,null,""]
[null,null,null,""]
[null,null,null,""]
[null,null,null,""]
[null,null,null,""]
[null,null,null,""]
[null,null,null,""]
[null,null,null,""]
[null,null,null,""]
[null,null,null,""]
[null,null,null,""]
[null,null,null,""]
[null,null,null,{"$f":"IF(ISBLANK(C76547),\"\",1)","v":""}]
[null,null,null,""]
[null,null,null,""]
[null,null,null,""]
[null,null,null,""]
[null,null,null,""]
[null,null,null,""]
[null,null,null,""]
[null,null,null,""]
[null,null,null,""]
[null,null,null,""]
[null,null,null,""]
[null,null,null,""]
[null,null,null,""]
[null,null,null,""]
[null,null,null,""]
[null,null,null,""]
[null,null,null,""]
[null,null,null,""]
[null,null,null,""]
[null,null,null,""]
[null,null,null,""]
[null,null,null,""]
[null,null,null,""]
[null,null,null,""]
[null,null,null,""]
[null,null,null,""]
[null,null,null,""]
[null,null,null,""]
[null,null,null,""]
[null,null,null,""]
[null,null,null,""]
[null,null,null,""]
[null,null,null,""]
[null,null,null,""]
[null,null,null,""]
[null,null,null,""]
[null,null,null,""]
[null,null,null,""]
[null,null,null,{"$f":"IF(ISBLANK(C96899),\"\",1)","v":""}]
[null,null,null,""]
[null,null,null,""]
[null,null,null,""]
[null,null,null,""]
[null,null,null,""]
[null,null,null,""]
[null,null,null,""]
[null,null,null,""]
[null,null,null,""]
[null,null,null,""]
[null,null,null,""]
[null,null,null,""]
[null,null,null,""]
[null,null,null,""]
[null,null,null,""]
[null,null,null,""]
[null,null,null,""]
[null,null,null,""]
[null,null,null,""]
[null,null,null,""]
[null,null,null,""]
[null,null,null,""]
[null,null,null,""]
[null,null,null,""]
[null,null,null,""]
[null,null,null,""]
[null,null,null,""]
[null,null,null,""]
[null,null,null,""]
[null,null,null,""]
[null,null,null,""]
[null,null,null,""]
[null,null,null,""]
[null,null,null,""]
[null,null,null,""]
[null,null,null,""]
[null,null,null,""]
[null,null,null,""]
[null,null,null,""]
[null,null,null,""]
[null,null,null,""]
[null,null,null,""]
[null,null,null,""]
[null,null,null,""]
[null,null,null,""]
[null,null,null,""]
[null,null,null,""]
[null,null,null,""]
[null,null,null,""]
[null,null,null,""]
[null,null,null,""]
[null,null,null,""]
[null,null,null,""]
[null,null,null,""]
[null,null,null,""]
[null,null,null,""]
[null,null,null,""]
[null,null,null,{"$f":"IF(ISBLANK(C127171),\"\",1)","v":""}]
[null,null,null,""]
[null,null,null,""]
[null,null,null,""]
[null,null,null,""]
[null,null,null,""]
[null,null,null,""]
[null,null,null,""]
[null,null,null,""]
[null,null,null,""]
[null,null,null,""]
[null,null,null,""]
[null,null,null,""]
[null,null,null,""]
[null,null,null,""]
[null,null,null,""]
[null,null,null,""]
[null,null,null,""]
[null,null,null,""]
[null,null,null,""]
[null,null,null,""]
[null,null,null,""]
[null,null,null,""]
[null,null,null,""]
[null,null,null,""]
[null,null,null,""]
[null,null,null,""]
[null,null,null,""]
[null,null,null,""]
[null,null,null,""]
[null,null,null,""]
[null,null,null,""]
[null,null,null,""]
[null,null,null,""]
[null,null,null,""]
[null,null,null,""]
[null,null,null,""]
[null,null,null,""]
[null,null,null,""]
[null,null,null,{"$f":"IF(ISBLANK(C147523),\"\",1)","v":""}]
[null,null,null,""]
[null,null,null,""]
[null,null,null,""]
[null,null,null,""]
[null,null,null,""]
[null,null,null,""]
[null,null,null,""]
[null,null,null,""]
[null,null,null,""]
[null,null,null,""]
[null,null,null,""]
[null,null,null,""]
[null,null,null,""]
[null,null,null,""]
[null,null,null,""]
[null,null,null,""]
[null,null,null,""]
[null,null,null,""]
[null,null,null,""]
[null,null,null,""]
[null,null,null,""]
[null,null,null,""]
[null,null,null,""]
[null,null,null,""]
[null,null,null,""]
[null,null,null,""]
[null,null,null,""]
[null,null,null,""]
[null,null,null,""]
[null,null,null,""]
[null,null,null,""]
[null,null,null,""]
[null,null,null,""]
[null,null,null,""]
[null,null,null,""]
[null,null,null,""]
[null,null,null,""]
[null,null,null,""]
[null,null,null,""]
[null,null,null,""]
[null,null,null,""]
[null,null,null,""]
[null,null,null,""]
[null,null,null,""]
[null,null,null,""]
[null,null,null,""]
[null,null,null,""]
[null,null,null,""]
[null,null,null,""]
[null,null,null,""]
[null,null,null,""]
[null,null,null,""]
[null,null,null,""]
[null,null,null,""]
[null,null,null,""]
[null,null,null,""]
[null,null,null,""]
[null,null,null,""]
[null,null,null,""]
[null,null,null,""]
[null,null,null,""]
[null,null,null,""]
[null,null,null,""]
[null,null,null,""]
[null,null,null,""]
[null,null,null,""]
[null,null,null,""]
[null,null,null,""]
[null,null,null,""]
[null,null,null,""]
[null,null,null,""]
[null,null,null,""]
[null,null,null,""]
[null,null,null,""]
[null,null,null,""]
[null,null,null,""]
[null,null,null,""]
[null,null,null,""]
[null,null,null,""]
[null,null,null,""]
[null,null,null,""]
[null,null,null,""]
[null,null,null,""]
[null,null,null,""]
[null,null,null,""]
[null,null,null,""]
[null,null,null,""]
[null,null,null,""]
[null,null,null,""]
[null,null,null,""]
[null,null,null,""]
[null,null,null,""]
[null,null,null,""]
[null,null,null,""]
[null,null,null,""]
[null,null,null,""]
[null,null,null,{"$f":"IF(ISBLANK(C198147),\"\",1)","v":""}]
[null,null,null,""]
[null,null,null,""]
[null,null,null,""]
[null,null,null,""]
[null,null,null,""]
[null,null,null,""]
[null,null,null,""]
[null,null,null,""]
[null,null,null,""]
[null,null,null,""]
[null,null,null,""]
[null,null,null,""]
[null,null,null,""]
[null,null,null,""]
[null,null,null,""]
[null,null,null,""]
[null,null,null,""]
[null,null,null,""]
[null,null,null,""]
[null,null,null,""]
[null,null,null,""]
[null,null,null,""]
[null,null,null,""]
[null,null,null,""]
[null,null,null,""]
[null,null,null,""]
[null,null,null,""]
[null,null,null,""]
[null,null,null,""]
[null,null,null,""]
[null,null,null,""]
[null,null,null,""]
[null,null,null,""]
[null,null,null,""]
[null,null,null,""]
[null,null,null,""]
[null,null,null,""]
[null,null,null,""]
[null,null,null,""]
[null,null,null,""]
[null,null,null,""]
[null,null,null,""]
[null,null,null,""]
[null,null,null,""]
[null,null,null,""]
[null,null,null,""]
[null,null,null,""]
[null,null,null,""]
[null,null,null,""]
[null,null,null,""]
[null,null,null,""]
[null,null,null,""]
[null,null,null,""]
[null,null,null,""]
[null,null,null,""]
[null,null,null,""]
[null,null,null,""]
[null,null,null,""]
[null,null,null,""]
[null,null,null,""]
[null,null,null,""]
[null,null,null,""]
[null,null,null,""]
[null,null,null,""]
[null,null,null,""]
[null,null,null,""]
[null,null,null,""]
[null,null,null,""]
[null,null,null,""]
[null,null,null,""]
[null,null,null,""]
[null,null,null,""]
[null,null,null,""]
[null,null,null,""]
[null,null,null,""]
[null,null,null,""]
[null,null,null,""]
[null,null,null,""]
[null,null,null,""]
[null,null,null,""]
[null,null,null,""]
[null,null,null,""]
[null,null,null,""]
[null,null,null,""]
[null,null,null,""]
[null,null,null,""]
[null,null,null,""]
[null,null,null,""]
[null,null,null,""]
[null,null,null,""]
[null,null,null,""]
[null,null,null,""]
[null,null,null,""]
[null,null,null,""]
[null,null,null,""]
[null,null,null,""]
[null,null,null,""]
[null,null,null,""]
[null,null,null,""]
[null,null,null,""]
[null,null,null,""]
[null,null,null,""]
[null,null,null,""]
[null,null,null,""]
[null,null,null,""]
[null,null,null,""]
[null,null,null,""]
[null,null,null,""]
[null,null,null,""]
[null,null,null,""]
[null,null,null,""]
[null,null,null,""]
[null,null,null,""]
[null,null,null,""]
[null,null,null,""]
[null,null,null,""]
[null,null,null,""]
[null,null,null,""]
[null,null,null,""]
[null,null,null,""]
[null,null,null,""]
[null,null,null,""]
[null,null,null,""]
[null,null,null,""]
[null,null,null,""]
[null,null,null,""]
[null,null,null,""]
[null,null,null,""]
[null,null,null,""]
[null,null,null,""]
[null,null,null,""]
[null,null,null,{"$f":"IF(ISBLANK(C267651),\"\",1)","v":""}]
[null,null,null,""]
[null,null,null,""]
[null,null,null,""]
[null,null,null,""]
[null,null,null,""]
[null,null,null,""]
[null,null,null,""]
[null,null,null,""]
[null,null,null,""]
[null,null,null,""]
[null,null,null,""]
[null,null,null,""]
[null,null,null,""]
[null,null,null,""]
[null,null,null,""]
[null,null,null,""]
[null,null,null,""]
[null,null,null,""]
[null,null,null,""]
[null,null,null,""]
[null,null,null,""]
[null,null,null,""]
[null,null,null,""]
[null,null,null,""]
[null,null,null,""]
[null,null,null,""]
[null,null,null,""]
[null,null,null,""]
[null,null,null,""]
[null,null,null,""]
[null,null,null,""]
[null,null,null,""]
[null,null,null,""]
[null,null,null,""]
[null,null,null,""]
[null,null,null,""]
[null,null,null,""]
[null,null,null,""]
[null,null,null,{"$f":"IF(ISBLANK(C288003),\"\",1)","v":""}]
[null,null,null,""]
[null,null,null,""]
[null,null,null,""]
[null,null,null,""]
[null,null,null,""]
[null,null,null,""]
[null,null,null,""]
[null,null,null,""]
[null,null,null,""]
[null,null,null,""]
[null,null,null,""]
[null,null,null,""]
[null,null,null,""]
[null,null,null,""]
[null,null,null,""]
[null,null,null,""]
[null,null,null,""]
[null,null,null,""]
[null,null,null,""]
[null,null,null,""]
[null,null,null,""]
[null,null,null,""]
[null,null,null,""]
[null,null,null,""]
[null,null,null,""]
[null,null,null,""]
[null,null,null,""]
[null,null,null,""]
[null,null,null,""]
[null,null,null,""]
[null,null,null,""]
[null,null,null,""]
[null,null,null,""]
[null,null,null,""]
[null,null,null,""]
[null,null,null,""]
[null,null,null,""]
[null,null,null,""]
[null,null,null,""]
[null,null,null,""]
[null,null,null,""]
[null,null,null,""]
[null,null,null,""]
[null,null,null,""]
[null,null,null,""]
[null,null,null,""]
[null,null,null,""]
[null,null,null,""]
[null,null,null,""]
[null,null,null,""]
[null,null,null,""]
[null,null,null,""]
[null,null,null,""]
[null,null,null,""]
[null,null,null,""]
[null,null,null,""]
[null,null,null,""]
[null,null,null,""]
[null,null,null,""]
[null,null,null,""]
[null,null,null,""]
[null,null,null,""]
[null,null,null,""]
[null,null,null,""]
[null,null,null,""]
[null,null,null,""]
[null,null,null,""]
[null,null,null,""]
[null,null,null,""]
[null,null,null,""]
[null,null,null,""]
[null,null,null,""]
[null,null,null,""]
[null,null,null,""]
[null,null,null,""]
[null,null,null,""]
[null,null,null,""]
[null,null,null,""]
[null,null,null,""]
[null,null,null,""]
[null,null,null,""]
[null,null,null,""]
[null,null,null,""]
[null,null,null,""]
[null,null,null,""]
[null,null,null,""]
[null,null,null,""]
[null,null,null,""]
[null,null,null,""]
[null,null,null,""]
[null,null,null,""]
[null,null,null,""]
[null,null,null,""]
[null,null,null,""]
[null,null,null,""]
[null,null,null,""]
[null,null,null,{"$f":"IF(ISBLANK(C338627),\"\",1)","v":""}]
[null,null,null,""]
[null,null,null,""]
[null,null,null,""]
[null,null,null,""]
[null,null,null,""]
[null,null,null,""]
[null,null,null,""]
[null,null,null,""]
[null,null,null,""]
[null,null,null,""]
[null,null,null,""]
[null,null,null,""]
[null,null,null,""]
[null,null,null,""]
[null,null,null,""]
[null,null,null,""]
[null,null,null,""]
[null,null,null,""]
[null,null,null,""]
[null,null,null,""]
[null,null,null,""]
[null,null,null,""]
[null,null,null,""]
[null,null,null,""]
[null,null,null,""]
[null,null,null,""]
[null,null,null,""]
[null,null,null,""]
[null,null,null,""]
[null,null,null,""]
[null,null,null,""]
[null,null,null,""]
[null,null,null,""]
[null,null,null,""]
[null,null,null,""]
[null,null,null,""]
[null,null,null,""]
[null,null,null,""]
[null,null,null,{"$f":"IF(ISBLANK(C358979),\"\",1)","v":""}]
[null,null,null,""]
[null,null,null,""]
[null,null,null,""]
[null,null,null,""]
[null,null,null,""]
[null,null,null,""]
[null,null,null,""]
[null,null,null,""]
[null,null,null,""]
[null,null,null,""]
[null,null,null,""]
[null,null,null,""]
[null,null,null,""]
[null,null,null,""]
[null,null,null,""]
[null,null,null,""]
[null,null,null,""]
[null,null,null,""]
[null,null,null,""]
[null,null,null,""]
[null,null,null,""]
[null,null,null,""]
[null,null,null,""]
[null,null,null,""]
[null,null,null,""]
[null,null,null,""]
[null,null,null,""]
[null,null,null,""]
[null,null,null,""]
[null,null,null,""]
[null,null,null,""]
[null,null,null,""]
[null,null,null,""]
[null,null,null,""]
[null,null,null,""]
[null,null,null,""]
[null,null,null,""]
[null,null,null,""]
[null,null,null,""]
[null,null,null,""]
[null,null,null,""]
[null,null,null,""]
[null,null,null,""]
[null,null,null,""]
[null,null,null,""]
[null,null,null,""]
[null,null,null,""]
[null,null,null,""]
[null,null,null,""]
[null,null,null,""]
[null,null,null,""]
[null,null,null,""]
[null,null,null,""]
[null,null,null,""]
[null,null,null,""]
[null,null,null,""]
[null,null,null,""]
[null,null,null,{"$f":"IF(ISBLANK(C389251),\"\",1)","v":""}]
[null,null,null,""]
[null,null,null,""]
[null,null,null,""]
[null,null,null,""]
[null,null,null,""]
[null,null,null,""]
[null,null,null,""]
[null,null,null,""]
[null,null,null,""]
[null,null,null,""]
[null,null,null,""]
[null,null,null,""]
[null,null,null,""]
[null,null,null,""]
[null,null,null,""]
[null,null,null,""]
[null,null,null,""]
[null,null,null,""]
[null,null,null,""]
[null,null,null,""]
[null,null,null,""]
[null,null,null,""]
[null,null,null,""]
[null,null,null,""]
[null,null,null,""]
[null,null,null,""]
[null,null,null,""]
[null,null,null,""]
[null,null,null,""]
[null,null,null,""]
[null,null,null,""]
[null,null,null,""]
[null,null,null,""]
[null,null,null,""]
[null,null,null,""]
[null,null,null,""]
[null,null,null,""]
[null,null,null,""]
[null,null,null,{"$f":"IF(ISBLANK(C409603),\"\",1)","v":""}]
[null,null,null,""]
[null,null,null,""]
[null,null,null,""]
[null,null,null,""]
[null,null,null,""]
[null,null,null,""]
[null,null,null,""]
[null,null,null,""]
[null,null,null,""]
[null,null,null,""]
[null,null,null,""]
[null,null,null,""]
[null,null,null,""]
[null,null,null,""]
[null,null,null,""]
[null,null,null,""]
[null,null,null,""]
[null,null,null,""]
[null,null,null,""]
[null,null,null,""]
[null,null,null,""]
[null,null,null,""]
[null,null,null,""]
[null,null,null,""]
[null,null,null,""]
[null,null,null,""]
[null,null,null,""]
[null,null,null,""]
[null,null,null,""]
[null,null,null,""]
[null,null,null,""]
[null,null,null,""]
[null,null,null,""]
[null,null,null,""]
[null,null,null,""]
[null,null,null,""]
[null,null,null,""]
[null,null,null,""]
[null,null,null,""]
[null,null,null,""]
[null,null,null,""]
[null,null,null,""]
[null,null,null,""]
[null,null,null,""]
[null,null,null,""]
[null,null,null,""]
[null,null,null,""]
[null,null,null,""]
[null,null,null,""]
[null,null,null,""]
[null,null,null,""]
[null,null,null,""]
[null,null,null,""]
[null,null,null,""]
[null,null,null,""]
[null,null,null,""]
[null,null,null,""]
[null,null,null,""]
[null,null,null,""]
[null,null,null,""]
[null,null,null,""]
[null,null,null,""]
[null,null,null,""]
[null,null,null,""]
[null,null,null,""]
[null,null,null,""]
[null,null,null,""]
[null,null,null,""]
[null,null,null,""]
[null,null,null,""]
[null,null,null,""]
[null,null,null,""]
[null,null,null,""]
[null,null,null,""]
[null,null,null,""]
[null,null,null,""]
[null,null,null,""]
[null,null,null,""]
[null,null,null,""]
[null,null,null,""]
[null,null,null,""]
[null,null,null,""]
[null,null,null,""]
[null,null,null,""]
[null,null,null,""]
[null,null,null,""]
[null,null,null,""]
[null,null,null,""]
[null,null,null,""]
[null,null,null,""]
[null,null,null,""]
[null,null,null,""]
[null,null,null,""]
[null,null,null,""]
[null,null,null,""]
[null,null,null,""]
[null,null,null,{"$f":"IF(ISBLANK(C460227),\"\",1)","v":""}]
[null,null,null,""]
[null,null,null,""]
[null,null,null,""]
[null,null,null,""]
[null,null,null,""]
[null,null,null,""]
[null,null,null,""]
[null,null,null,""]
[null,null,null,""]
[null,null,null,""]
[null,null,null,""]
[null,null,null,""]
[null,null,null,""]
[null,null,null,""]
[null,null,null,""]
[null,null,null,""]
[null,null,null,""]
[null,null,null,""]
[null,null,null,""]
[null,null,null,""]
[null,null,null,""]
[null,null,null,""]
[null,null,null,""]
[null,null,null,""]
[null,null,null,""]
[null,null,null,""]
[null,null,null,""]
[null,null,null,""]
[null,null,null,""]
[null,null,null,""]
[null,null,null,""]
[null,null,null,""]
[null,null,null,""]
[null,null,null,""]
[null,null,null,""]
[null,null,null,""]
[null,null,null,""]
[null,null,null,""]
[null,null,null,""]
[null,null,null,""]
[null,null,null,""]
[null,null,null,""]
[null,null,null,""]
[null,null,null,""]
[null,null,null,""]
[null,null,null,""]
[null,null,null,""]
[null,null,null,""]
[null,null,null,""]
[null,null,null,""]
[null,null,null,""]
[null,null,null,""]
[null,null,null,""]
[null,null,null,""]
[null,null,null,""]
[null,null,null,""]
[null,null,null,""]
[null,null,null,""]
[null,null,null,""]
[null,null,null,""]
[null,null,null,""]
[null,null,null,""]
[null,null,null,""]
[null,null,null,""]
[null,null,null,""]
[null,null,null,""]
[null,null,null,""]
[null,null,null,""]
[null,null,null,""]
[null,null,null,""]
[null,null,null,""]
[null,null,null,""]
[null,null,null,""]
[null,null,null,""]
[null,null,null,""]
[null,null,null,""]
[null,null,null,""]
[null,null,null,""]
[null,null,null,""]
[null,null,null,""]
[null,null,null,""]
[null,null,null,""]
[null,null,null,""]
[null,null,null,""]
[null,null,null,""]
[null,null,null,""]
[null,null,null,""]
[null,null,null,""]
[null,null,null,""]
[null,null,null,""]
[null,null,null,""]
[null,null,null,""]
[null,null,null,""]
[null,null,null,""]
[null,null,null,""]
[null,null,null,""]
[null,null,null,""]
[null,null,null,""]
[null,null,null,""]
[null,null,null,""]
[null,null,null,""]
[null,null,null,""]
[null,null,null,""]
[null,null,null,""]
[null,null,null,""]
[null,null,null,""]
[null,null,null,""]
[null,null,null,""]
[null,null,null,""]
[null,null,null,""]
[null,null,null,""]
[null,null,null,""]
[null,null,null,""]
[null,null,null,""]
[null,null,null,""]
[null,null,null,""]
[null,null,null,""]
[null,null,null,""]
[null,null,null,""]
[null,null,null,""]
[null,null,null,""]
[null,null,null,""]
[null,null,null,""]
[null,null,null,""]
[null,null,null,""]
[null,null,null,""]
[null,null,null,""]
[null,null,null,""]
[null,null,null,""]
[null,null,null,""]
[null,null,null,""]
[null,null,null,""]
[null,null,null,""]
[null,null,null,""]
[null,null,null,""]
[null,null,null,""]
[null,null,null,""]
[null,null,null,""]
[null,null,null,""]
[null,null,null,""]
[null,null,null,""]
[null,null,null,""]
[null,null,null,""]
[null,null,null,""]
[null,null,null,""]
[null,null,null,""]
[null,null,null,""]
[null,null,null,""]
[null,null,null,""]
[null,null,null,""]
[null,null,null,""]
[null,null,null,""]
[null,null,null,""]
[null,null,null,""]
[null,null,null,""]
[null,null,null,""]
[null,null,null,""]
[null,null,null,""]
[null,null,null,""]
[null,null,null,""]
[null,null,null,{"$f":"IF(ISBLANK(C544899),\"\",1)","v":""}]
[null,null,null,""]
[null,null,null,""]
[null,null,null,""]
[null,null,null,""]
[null,null,null,""]
[null,null,null,""]
[null,null,null,""]
[null,null,null,""]
[null,null,null,""]
[null,null,null,{"$f":"IF(ISBLANK(C550083),\"\",1)","v":""}]
[null,null,null,""]
[null,null,null,""]
[null,null,null,""]
[null,null,null,""]
[null,null,null,""]
[null,null,null,""]
[null,null,null,""]
[null,null,null,""]
[null,null,null,""]
[null,null,null,""]
[null,null,null,""]
[null,null,null,""]
[null,null,null,""]
[null,null,null,""]
[null,null,null,""]
[null,null,null,""]
[null,null,null,""]
[null,null,null,""]
[null,null,null,""]
[null,null,null,""]
[null,null,null,""]
[null,null,null,""]
[null,null,null,""]
[null,null,null,""]
[null,null,null,""]
[null,null,null,""]
[null,null,null,""]
[null,null,null,""]
[null,null,null,""]
[null,null,null,""]
[null,null,null,""]
[null,null,null,""]
[null,null,null,""]
[null,null,null,""]
[null,null,null,""]
[null,null,null,""]
[null,null,null,""]
[null,null,null,""]
[null,null,null,""]
[null,null,null,""]
[null,null,null,""]
[null,null,null,""]
[null,null,null,""]
[null,null,null,""]
[null,null,null,""]
[null,null,null,""]
[null,null,null,""]
[null,null,null,""]
[null,null,null,""]
[null,null,null,""]
[null,null,null,""]
[null,null,null,""]
[null,null,null,""]
[null,null,null,""]
[null,null,null,""]
[null,null,null,""]
[null,null,null,""]
[null,null,null,""]
[null,null,null,""]
[null,null,null,""]
[null,null,null,""]
[null,null,null,""]
[null,null,null,""]
[null,null,null,""]
[null,null,null,""]
[null,null,null,""]
[null,null,null,""]
[null,null,null,""]
[null,null,null,""]
[null,null,null,""]
[null,null,null,""]
[null,null,null,""]
[null,null,null,""]
[null,null,null,""]
[null,null,null,""]
[null,null,null,""]
[null,null,null,""]
[null,null,null,""]
[null,null,null,""]
[null,null,null,""]
[null,null,null,""]
[null,null,null,""]
[null,null,null,""]
[null,null,null,""]
[null,null,null,""]
[null,null,null,""]
[null,null,null,{"$f":"IF(ISBLANK(C595523),\"\",1)","v":""}]
[null,null,null,""]
[null,null,null,""]
[null,null,null,""]
[null,null,null,""]
[null,null,null,""]
[null,null,null,""]
[null,null,null,""]
[null,null,null,""]
[null,null,null,""]
[null,null,null,{"$f":"IF(ISBLANK(C600707),\"\",1)","v":""}]
[null,null,null,""]
[null,null,null,""]
[null,null,null,""]
[null,null,null,""]
[null,null,null,""]
[null,null,null,""]
[null,null,null,""]
[null,null,null,""]
[null,null,null,""]
[null,null,null,""]
[null,null,null,""]
[null,null,null,""]
[null,null,null,""]
[null,null,null,""]
[null,null,null,""]
[null,null,null,""]
[null,null,null,""]
[null,null,null,""]
[null,null,null,""]
[null,null,null,""]
[null,null,null,""]
[null,null,null,""]
[null,null,null,""]
[null,null,null,""]
[null,null,null,""]
[null,null,null,""]
[null,null,null,""]
[null,null,null,""]
[null,null,null,{"$f":"IF(ISBLANK(C615875),\"\",1)","v":""}]
[null,null,null,""]
[null,null,null,""]
[null,null,null,""]
[null,null,null,""]
[null,null,null,""]
[null,null,null,""]
[null,null,null,""]
[null,null,null,""]
[null,null,null,""]
[null,null,null,{"$f":"IF(ISBLANK(C621059),\"\",1)","v":""}]
[null,null,null,""]
[null,null,null,""]
[null,null,null,""]
[null,null,null,""]
[null,null,null,""]
[null,null,null,""]
[null,null,null,""]
[null,null,null,""]
[null,null,null,""]
[null,null,null,""]
[null,null,null,""]
[null,null,null,""]
[null,null,null,""]
[null,null,null,""]
[null,null,null,""]
[null,null,null,""]
[null,null,null,""]
[null,null,null,""]
[null,null,null,""]
[null,null,null,""]
[null,null,null,""]
[null,null,null,""]
[null,null,null,""]
[null,null,null,""]
[null,null,null,""]
[null,null,null,""]
[null,null,null,""]
[null,null,null,""]
[null,null,null,""]
[null,null,null,""]
[null,null,null,""]
[null,null,null,""]
[null,null,null,""]
[null,null,null,""]
[null,null,null,""]
[null,null,null,""]
[null,null,null,""]
[null,null,null,""]
[null,null,null,""]
[null,null,null,""]
[null,null,null,""]
[null,null,null,""]
[null,null,null,""]
[null,null,null,""]
[null,null,null,""]
[null,null,null,""]
[null,null,null,""]
[null,null,null,""]
[null,null,null,""]
[null,null,null,""]
[null,null,null,""]
[null,null,null,""]
[null,null,null,""]
[null,null,null,""]
[null,null,null,""]
[null,null,null,""]
[null,null,null,""]
[null,null,null,""]
[null,null,null,""]
[null,null,null,""]
[null,null,null,""]
[null,null,null,""]
[null,null,null,""]
[null,null,null,""]
[null,null,null,""]
[null,null,null,""]
[null,null,null,""]
[null,null,null,""]
[null,null,null,""]
[null,null,null,""]
[null,null,null,""]
[null,null,null,""]
[null,null,null,""]
[null,null,null,""]
[null,null,null,""]
[null,null,null,""]
[null,null,null,""]
[null,null,null,""]
[null,null,null,""]
[null,null,null,""]
[null,null,null,""]
[null,null,null,""]
[null,null,null,""]
[null,null,null,""]
[null,null,null,""]
[null,null,null,""]
[null,null,null,{"$f":"IF(ISBLANK(C666499),\"\",1)","v":""}]
[null,null,null,""]
[null,null,null,""]
[null,null,null,""]
[null,null,null,""]
[null,null,null,""]
[null,null,null,""]
[null,null,null,""]
[null,null,null,""]
[null,null,null,""]
[null,null,null,{"$f":"IF(ISBLANK(C671683),\"\",1)","v":""}]
[null,null,null,""]
[null,null,null,""]
[null,null,null,""]
[null,null,null,""]
[null,null,null,""]
[null,null,null,""]
[null,null,null,""]
[null,null,null,""]
[null,null,null,""]
[null,null,null,""]
[null,null,null,""]
[null,null,null,""]
[null,null,null,""]
[null,null,null,""]
[null,null,null,""]
[null,null,null,""]
[null,null,null,""]
[null,null,null,""]
[null,null,null,""]
[null,null,null,""]
[null,null,null,""]
[null,null,null,""]
[null,null,null,""]
[null,null,null,""]
[null,null,null,""]
[null,null,null,""]
[null,null,null,""]
[null,null,null,""]
[null,null,null,""]
[null,null,null,""]
[null,null,null,""]
[null,null,null,""]
[null,null,null,""]
[null,null,null,""]
[null,null,null,""]
[null,null,null,""]
[null,null,null,""]
[null,null,null,""]
[null,null,null,""]
[null,null,null,""]
[null,null,null,""]
[null,null,null,""]
[null,null,null,""]
[null,null,null,""]
[null,null,null,""]
[null,null,null,""]
[null,null,null,""]
[null,null,null,""]
[null,null,null,""]
[null,null,null,""]
[null,null,null,""]
[null,null,null,""]
[null,null,null,""]
[null,null,null,""]
[null,null,null,""]
[null,null,null,""]
[null,null,null,""]
[null,null,null,""]
[null,null,null,""]
[null,null,null,""]
[null,null,null,""]
[null,null,null,""]
[null,null,null,""]
[null,null,null,""]
[null,null,null,""]
[null,null,null,""]
[null,null,null,""]
[null,null,null,""]
[null,null,null,""]
[null,null,null,""]
[null,null,null,""]
[null,null,null,""]
[null,null,null,""]
[null,null,null,""]
[null,null,null,""]
[null,null,null,""]
[null,null,null,""]
[null,null,null,""]
[null,null,null,""]
[null,null,null,""]
[null,null,null,""]
[null,null,null,""]
[null,null,null,""]
[null,null,null,""]
[null,null,null,""]
[null,null,null,""]
[null,null,null,""]
[null,null,null,""]
[null,null,null,""]
[null,null,null,""]
[null,null,null,""]
[null,null,null,""]
[null,null,null,""]
[null,null,null,""]
[null,null,null,""]
[null,null,null,""]
[null,null,null,{"$f":"IF(ISBLANK(C722307),\"\",1)","v":""}]
[null,null,null,""]
[null,null,null,""]
[null,null,null,""]
[null,null,null,""]
[null,null,null,""]
[null,null,null,""]
[null,null,null,""]
[null,null,null,""]
[null,null,null,""]
[null,null,null,""]
[null,null,null,""]
[null,null,null,""]
[null,null,null,""]
[null,null,null,""]
[null,null,null,""]
[null,null,null,""]
[null,null,null,""]
[null,null,null,""]
[null,null,null,""]
[null,null,null,""]
[null,null,null,""]
[null,null,null,""]
[null,null,null,""]
[null,null,null,""]
[null,null,null,""]
[null,null,null,""]
[null,null,null,""]
[null,null,null,""]
[null,null,null,{"$f":"IF(ISBLANK(C737475),\"\",1)","v":""}]
[null,null,null,""]
[null,null,null,""]
[null,null,null,""]
[null,null,null,""]
[null,null,null,""]
[null,null,null,""]
[null,null,null,""]
[null,null,null,""]
[null,null,null,""]
[null,null,null,{"$f":"IF(ISBLANK(C742659),\"\",1)","v":""}]
[null,null,null,""]
[null,null,null,""]
[null,null,null,""]
[null,null,null,""]
[null,null,null,""]
[null,null,null,""]
[null,null,null,""]
[null,null,null,""]
[null,null,null,""]
[null,null,null,""]
[null,null,null,""]
[null,null,null,""]
[null,null,null,""]
[null,null,null,""]
[null,null,null,""]
[null,null,null,""]
[null,null,null,""]
[null,null,null,""]
[null,null,null,""]
[null,null,null,""]
[null,null,null,""]
[null,null,null,""]
[null,null,null,""]
[null,null,null,""]
[null,null,null,""]
[null,null,null,""]
[null,null,null,""]
[null,null,null,""]
[null,null,null,""]
[null,null,null,""]
[null,null,null,""]
[null,null,null,""]
[null,null,null,""]
[null,null,null,""]
[null,null,null,""]
[null,null,null,""]
[null,null,null,""]
[null,null,null,""]
[null,null,null,""]
[null,null,null,""]
[null,null,null,""]
[null,null,null,""]
[null,null,null,""]
[null,null,null,""]
[null,null,null,""]
[null,null,null,""]
[null,null,null,""]
[null,null,null,""]
[null,null,null,""]
[null,null,null,""]
[null,null,null,""]
[null,null,null,""]
[null,null,null,""]
[null,null,null,""]
[null,null,null,""]
[null,null,null,""]
[null,null,null,""]
[null,null,null,""]
[null,null,null,""]
[null,null,null,""]
[null,null,null,""]
[null,null,null,""]
[null,null,null,""]
[null,null,null,""]
[null,null,null,""]
[null,null,null,""]
[null,null,null,""]
[null,null,null,""]
[null,null,null,""]
[null,null,null,""]
[null,null,null,""]
[null,null,null,""]
[null,null,null,""]
[null,null,null,""]
[null,null,null,""]
[null,null,null,""]
[null,null,null,""]
[null,null,null,""]
[null,null,null,""]
[null,null,null,""]
[null,null,null,""]
[null,null,null,""]
[null,null,null,""]
[null,null,null,""]
[null,null,null,""]
[null,null,null,""]
[null,null,null,""]
[null,null,null,""]
[null,null,null,""]
[null,null,null,""]
[null,null,null,""]
[null,null,null,""]
[null,null,null,""]
[null,null,null,""]
[null,null,null,""]
[null,null,null,""]
[null,null,null,""]
[null,null,null,""]
[null,null,null,""]
[null,null,null,""]
[null,null,null,""]
[null,null,null,""]
[null,null,null,""]
[null,null,null,""]
[null,null,null,""]
[null,null,null,""]
[null,null,null,""]
[null,null,null,""]
[null,null,null,""]
[null,null,null,""]
[null,null,null,""]
[null,null,null,""]
[null,null,null,""]
[null,null,null,""]
[null,null,null,""]
[null,null,null,""]
[null,null,null,""]
[null,null,null,""]
[null,null,null,""]
[null,null,null,""]
[null,null,null,""]
[null,null,null,""]
[null,null,null,""]
[null,null,null,""]
[null,null,null,""]
[null,null,null,""]
[null,null,null,""]
[null,null,null,""]
[null,null,null,""]
[null,null,null,""]
[null,null,null,""]
[null,null,null,""]
[null,null,null,""]
[null,null,null,""]
[null,null,null,""]
[null,null,null,""]
[null,null,null,""]
[null,null,null,""]
[null,null,null,""]
[null,null,null,""]
[null,null,null,""]
[null,null,null,""]
[null,null,null,""]
[null,null,null,""]
[null,null,null,""]
[null,null,null,""]
[null,null,null,""]
[null,null,null,""]
[null,null,null,""]
[null,null,null,""]
[null,null,null,""]
[null,null,null,""]
[null,null,null,""]
[null,null,null,""]
[null,null,null,""]
[null,null,null,""]
[null,null,null,""]
[null,null,null,""]
[null,null,null,""]
[null,null,null,""]
[null,null,null,{"$f":"IF(ISBLANK(C827331),\"\",1)","v":""}]
[null,null,null,""]
[null,null,null,""]
[null,null,null,""]
[null,null,null,""]
[null,null,null,""]
[null,null,null,""]
[null,null,null,""]
[null,null,null,""]
[null,null,null,""]
[null,null,null,""]
[null,null,null,""]
[null,null,null,""]
[null,null,null,""]
[null,null,null,""]
[null,null,null,""]
[null,null,null,""]
[null,null,null,""]
[null,null,null,""]
[null,null,null,""]
[null,null,null,""]
[null,null,null,""]
[null,null,null,""]
[null,null,null,""]
[null,null,null,""]
[null,null,null,""]
[null,null,null,""]
[null,null,null,""]
[null,null,null,""]
[null,null,null,""]
[null,null,null,""]
[null,null,null,""]
[null,null,null,""]
[null,null,null,""]
[null,null,null,""]
[null,null,null,""]
[null,null,null,""]
[null,null,null,""]
[null,null,null,""]
[null,null,null,""]
[null,null,null,""]
[null,null,null,""]
[null,null,null,""]
[null,null,null,""]
[null,null,null,""]
[null,null,null,""]
[null,null,null,""]
[null,null,null,""]
[null,null,null,""]
[null,null,null,""]
[null,null,null,""]
[null,null,null,""]
[null,null,null,""]
[null,null,null,""]
[null,null,null,""]
[null,null,null,""]
[null,null,null,""]
[null,null,null,""]
[null,null,null,{"$f":"IF(ISBLANK(C857603),\"\",1)","v":""}]
[null,null,null,""]
[null,null,null,""]
[null,null,null,""]
[null,null,null,""]
[null,null,null,""]
[null,null,null,""]
[null,null,null,""]
[null,null,null,""]
[null,null,null,""]
[null,null,null,""]
[null,null,null,""]
[null,null,null,""]
[null,null,null,""]
[null,null,null,""]
[null,null,null,""]
[null,null,null,""]
[null,null,null,""]
[null,null,null,""]
[null,null,null,""]
[null,null,null,""]
[null,null,null,""]
[null,null,null,""]
[null,null,null,""]
[null,null,null,""]
[null,null,null,""]
[null,null,null,""]
[null,null,null,""]
[null,null,null,""]
[null,null,null,""]
[null,null,null,""]
[null,null,null,""]
[null,null,null,""]
[null,null,null,""]
[null,null,null,""]
[null,null,null,""]
[null,null,null,""]
[null,null,null,""]
[null,null,null,""]
[null,null,null,{"$f":"IF(ISBLANK(C877955),\"\",1)","v":""}]
[null,null,null,""]
[null,null,null,""]
[null,null,null,""]
[null,null,null,""]
[null,null,null,""]
[null,null,null,""]
[null,null,null,""]
[null,null,null,""]
[null,null,null,""]
[null,null,null,""]
[null,null,null,""]
[null,null,null,""]
[null,null,null,""]
[null,null,null,""]
[null,null,null,""]
[null,null,null,""]
[null,null,null,""]
[null,null,null,""]
[null,null,null,""]
[null,null,null,""]
[null,null,null,""]
[null,null,null,""]
[null,null,null,""]
[null,null,null,""]
[null,null,null,""]
[null,null,null,""]
[null,null,null,""]
[null,null,null,""]
[null,null,null,""]
[null,null,null,""]
[null,null,null,""]
[null,null,null,""]
[null,null,null,""]
[null,null,null,""]
[null,null,null,""]
[null,null,null,""]
[null,null,null,""]
[null,null,null,""]
[null,null,null,""]
[null,null,null,""]
[null,null,null,""]
[null,null,null,""]
[null,null,null,""]
[null,null,null,""]
[null,null,null,""]
[null,null,null,""]
[null,null,null,""]
[null,null,null,""]
[null,null,null,""]
[null,null,null,""]
[null,null,null,""]
[null,null,null,""]
[null,null,null,""]
[null,null,null,""]
[null,null,null,""]
[null,null,null,""]
[null,null,null,""]
[null,null,null,""]
[null,null,null,""]
[null,null,null,""]
[null,null,null,""]
[null,null,null,""]
[null,null,null,""]
[null,null,null,""]
[null,null,null,""]
[null,null,null,""]
[null,null,null,""]
[null,null,null,""]
[null,null,null,""]
[null,null,null,""]
[null,null,null,""]
[null,null,null,""]
[null,null,null,""]
[null,null,null,""]
[null,null,null,""]
[null,null,null,""]
[null,null,null,""]
[null,null,null,""]
[null,null,null,""]
[null,null,null,""]
[null,null,null,""]
[null,null,null,""]
[null,null,null,""]
[null,null,null,""]
[null,null,null,""]
[null,null,null,""]
[null,null,null,""]
[null,null,null,""]
[null,null,null,""]
[null,null,null,""]
[null,null,null,""]
[null,null,null,""]
[null,null,null,""]
[null,null,null,""]
[null,null,null,""]
[null,null,null,""]
[null,null,null,{"$f":"IF(ISBLANK(C928579),\"\",1)","v":""}]
[null,null,null,""]
[null,null,null,""]
[null,null,null,""]
[null,null,null,""]
[null,null,null,""]
[null,null,null,""]
[null,null,null,""]
[null,null,null,""]
[null,null,null,""]
[null,null,null,""]
[null,null,null,""]
[null,null,null,""]
[null,null,null,""]
[null,null,null,""]
[null,null,null,""]
[null,null,null,""]
[null,null,null,""]
[null,null,null,""]
[null,null,null,""]
[null,null,null,""]
[null,null,null,""]
[null,null,null,""]
[null,null,null,""]
[null,null,null,""]
[null,null,null,""]
[null,null,null,""]
[null,null,null,""]
[null,null,null,""]
[null,null,null,""]
[null,null,null,""]
[null,null,null,""]
[null,null,null,""]
[null,null,null,""]
[null,null,null,""]
[null,null,null,""]
[null,null,null,""]
[null,null,null,""]
[null,null,null,""]
[null,null,null,{"$f":"IF(ISBLANK(C948931),\"\",1)","v":""}]
[null,null,null,""]
[null,null,null,""]
[null,null,null,""]
[null,null,null,""]
[null,null,null,""]
[null,null,null,""]
[null,null,null,""]
[null,null,null,""]
[null,null,null,""]
[null,null,null,""]
[null,null,null,""]
[null,null,null,""]
[null,null,null,""]
[null,null,null,""]
[null,null,null,""]
[null,null,null,""]
[null,null,null,""]
[null,null,null,""]
[null,null,null,""]
[null,null,null,""]
[null,null,null,""]
[null,null,null,""]
[null,null,null,""]
[null,null,null,""]
[null,null,null,""]
[null,null,null,""]
[null,null,null,""]
[null,null,null,""]
[null,null,null,""]
[null,null,null,""]
[null,null,null,""]
[null,null,null,""]
[null,null,null,""]
[null,null,null,""]
[null,null,null,""]
[null,null,null,""]
[null,null,null,""]
[null,null,null,""]
[null,null,null,""]
[null,null,null,""]
[null,null,null,""]
[null,null,null,""]
[null,null,null,""]
[null,null,null,""]
[null,null,null,""]
[null,null,null,""]
[null,null,null,""]
[null,null,null,""]
[null,null,null,""]
[null,null,null,""]
[null,null,null,""]
[null,null,null,""]
[null,null,null,""]
[null,null,null,""]
[null,null,null,""]
[null,null,null,""]
[null,null,null,""]
[null,null,null,""]
[null,null,null,""]
[null,null,null,""]
[null,null,null,""]
[null,null,null,""]
[null,null,null,""]
[null,null,null,""]
[null,null,null,""]
[null,null,null,""]
[null,null,null,""]
[null,null,null,""]
[null,null,null,""]
[null,null,null,""]
[null,null,null,""]
[null,null,null,""]
[null,null,null,""]
[null,null,null,""]
[null,null,null,""]
[null,null,null,""]
[null,null,null,""]
[null,null,null,""]
[null,null,null,""]
[null,null,null,""]
[null,null,null,""]
[null,null,null,""]
[null,null,null,""]
[null,null,null,""]
[null,null,null,""]
[null,null,null,""]
[null,null,null,""]
[null,null,null,""]
[null,null,null,""]
[null,null,null,""]
[null,null,null,""]
[null,null,null,""]
[null,null,null,""]
[null,null,null,""]
[null,null,null,""]
[null,null,null,""]
[null,null,null,{"$f":"IF(ISBLANK(C999555),\"\",1)","v":""}]
[null,null,null,""]
[null,null,null,""]
[null,null,null,""]
[null,null,null,""]
[null,null,null,""]
[null,null,null,""]
[null,null,null,""]
[null,null,null,""]
[null,null,null,""]
[null,null,null,""]
[null,null,null,""]
[null,null,null,""]
[null,null,null,""]
[null,null,null,""]
[null,null,null,""]
[null,null,null,""]
[null,null,null,""]
[null,null,null,""]
[null,null,null,""]
[null,null,null,""]
[null,null,null,""]
[null,null,null,""]
[null,null,null,""]
[null,null,null,""]
[null,null,null,""]
[null,null,null,""]
[null,null,null,""]
[null,null,null,""]
[null,null,null,""]
[null,null,null,""]
[null,null,null,""]
[null,null,null,""]
[null,null,null,""]
[null,null,null,""]
[null,null,null,""]
[null,null,null,""]
[null,null,null,""]
[null,null,null,""]
[null,null,null,{"$f":"IF(ISBLANK(C1019907),\"\",1)","v":""}]
[null,null,null,""]
[null,null,null,""]
[null,null,null,""]
[null,null,null,""]
[null,null,null,""]
[null,null,null,""]
[null,null,null,""]
[null,null,null,""]
[null,null,null,""]
[null,null,null,""]
[null,null,null,""]
[null,null,null,""]
[null,null,null,""]
[null,null,null,""]
[null,null,null,""]
[null,null,null,""]
[null,null,null,""]
[null,null,null,""]
[null,null,null,""]
[null,null,null,""]
[null,null,null,""]
[null,null,null,""]
[null,null,null,""]
[null,null,null,""]
[null,null,null,""]
[null,null,null,""]
[null,null,null,""]
[null,null,null,""]
[null,null,null,""]
[null,null,null,""]
[null,null,null,""]
[null,null,null,""]
[null,null,null,""]
[null,null,null,""]
[null,null,null,""]
[null,null,null,""]
[null,null,null,""]
[null,null,null,""]
[null,null,null,""]
[null,null,null,""]
[null,null,null,""]
[null,null,null,""]
[null,null,null,""]
[null,null,null,""]
[null,null,null,""]
[null,null,null,""]
[null,null,null,""]
[null,null,null,""]
[null,null,null,""]
[null,null,null,""]
[null,null,null,""]
[null,null,null,""]
[null,null,null,""]
[null,null,null,""]
[null,null,null,""]
[null,null,null,""]
[null,null,null,""]
[null,null,null,""]
[null,null,null,""]
[null,null,null,""]
[null,null,null,""]
[null,null,null,""]
[null,null,null,""]
[null,null,null,""]
[null,null,null,""]
[null,null,null,""]
[null,null,null,""]
[null,null,null,""]
[null,null,null,""]
[null,null,null,""]
[null,null,null,""]
[null,null,null,""]
[null,null,null,""]
[null,null,null,""]
[null,null,null,""]
[null,null,null,""]
[null,null,null,""]
[null,null,null,""]
[null,null,null,""]
[null,null,null,""]
[null,null,null,""]
[null,null,null,""]
[null,null,null,""]
[null,null,null,""]
[null,null,null,""]
[null,null,null,""]
[null,null,null,""]
[null,null,null,""]
[null,null,null,""]
[null,null,null,""]
[null,null,null,""]
[null,null,null,""]
[null,null,null,""]
[null,null,null,""]
[null,null,null,""]
[null,null,null,""]
[null,null,null,""]
[null,null,null,""]
[null,null,null,""]
[null,null,null,""]
[null,null,null,""]
[null,null,null,""]
[null,null,null,""]
[null,null,null,""]
[null,null,null,""]
[null,null,null,""]
[null,null,null,""]
[null,null,null,{"$f":"IF(ISBLANK(C1048131),\"\",1)","v":""}]
[null,null,null,""]
[null,null,null,""]
[null,null,null,""]
[null,null,null,""]
[null,null,null,""]
[null,null,null,""]
[null,null,null,""]
[null,null,null,""]
[null,null,null,""]
[null,null,null,""]
[null,null,null,""]
[null,null,null,""]
[null,null,null,""]
[null,null,null,""]
[null,null,null,""]
[null,null,null,""]
[null,null,null,""]
[null,null,null,""]
[null,null,null,""]
[null,null,null,""]
[null,null,null,""]
[null,null,null,""]
[null,null,null,""]
[null,null,null,""]
[null,null,null,""]
[null,null,null,""]
[null,null,null,""]
[null,null,null,""]
[null,null,null,""]
[null,null,null,""]
[null,null,null,""]
[null,null,null,""]
[null,null,null,""]
[null,null,null,""]
[null,null,null,""]
[null,null,null,""]
[null,null,null,""]
[null,null,null,""]
[null,null,null,""]
[null,null,null,""]
[null,null,null,""]
[null,null,null,""]
[null,null,null,""]
[null,null,null,""]
[null,null,null,""]
[null,null,null,""]
[null,null,null,""]
[null,null,null,""]
[null,null,null,""]
[null,null,null,""]
[null,null,null,""]
[null,null,null,""]
[null,null,null,""]
[null,null,null,""]
[null,null,null,""]
[null,null,null,""]
[null,null,null,""]
[null,null,null,""]
[null,null,null,""]
[null,null,null,""]
[null,null,null,""]
[null,null,null,""]
[null,null,null,""]
[null,null,null,{"$f":"IF(ISBLANK(C1048195),\"\",1)","v":""}]
[null,null,null,""]
[null,null,null,""]
[null,null,null,""]
[null,null,null,""]
[null,null,null,""]
[null,null,null,""]
[null,null,null,""]
[null,null,null,""]
[null,null,null,""]
[null,null,null,""]
[null,null,null,""]
[null,null,null,""]
[null,null,null,""]
[null,null,null,""]
[null,null,null,""]
[null,null,null,""]
[null,null,null,""]
[null,null,null,""]
[null,null,null,""]
[null,null,null,""]
[null,null,null,""]
[null,null,null,""]
[null,null,null,""]
[null,null,null,""]
[null,null,null,""]
[null,null,null,""]
[null,null,null,""]
[null,null,null,""]
[null,null,null,""]
[null,null,null,""]
[null,null,null,""]
[null,null,null,""]
[null,null,null,""]
[null,null,null,""]
[null,null,null,""]
[null,null,null,""]
[null,null,null,""]
[null,null,null,""]
[null,null,null,""]
[null,null,null,""]
[null,null,null,""]
[null,null,null,""]
[null,null,null,""]
[null,null,null,""]
[null,null,null,""]
[null,null,null,""]
[null,null,null,""]
[null,null,null,""]
[null,null,null,""]
[null,null,null,""]
[null,null,null,""]
[null,null,null,""]
[null,null,null,""]
[null,null,null,""]
[null,null,null,""]
[null,null,null,""]
[null,null,null,""]
[null,null,null,""]
[null,null,null,""]
[null,null,null,""]
[null,null,null,""]
[null,null,null,""]
[null,null,null,""]
[null,null,null,{"$f":"IF(ISBLANK(C1048259),\"\",1)","v":""}]
[null,null,null,""]
[null,null,null,""]
[null,null,null,""]
[null,null,null,""]
[null,null,null,""]
[null,null,null,""]
[null,null,null,""]
[null,null,null,""]
[null,null,null,""]
[null,null,null,""]
[null,null,null,""]
[null,null,null,""]
[null,null,null,""]
[null,null,null,""]
[null,null,null,""]
[null,null,null,""]
[null,null,null,""]
[null,null,null,""]
[null,null,null,""]
[null,null,null,""]
[null,null,null,""]
[null,null,null,""]
[null,null,null,""]
[null,null,null,""]
[null,null,null,""]
[null,null,null,""]
[null,null,null,""]
[null,null,null,""]
[null,null,null,""]
[null,null,null,""]
[null,null,null,""]
[null,null,null,""]
[null,null,null,""]
[null,null,null,""]
[null,null,null,""]
[null,null,null,""]
[null,null,null,""]
[null,null,null,""]
[null,null,null,""]
[null,null,null,""]
[null,null,null,""]
[null,null,null,""]
[null,null,null,""]
[null,null,null,""]
[null,null,null,""]
[null,null,null,""]
[null,null,null,""]
[null,null,null,""]
[null,null,null,""]
[null,null,null,""]
[null,null,null,""]
[null,null,null,""]
[null,null,null,""]
[null,null,null,""]
[null,null,null,""]
[null,null,null,""]
[null,null,null,""]
[null,null,null,""]
[null,null,null,""]
[null,null,null,""]
[null,null,null,""]
[null,null,null,""]
[null,null,null,""]
[null,null,null,{"$f":"IF(ISBLANK(C1048323),\"\",1)","v":""}]
[null,null,null,""]
[null,null,null,""]
[null,null,null,""]
[null,null,null,""]
[null,null,null,""]
[null,null,null,""]
[null,null,null,""]
[null,null,null,""]
[null,null,null,""]
[null,null,null,""]
[null,null,null,""]
[null,null,null,""]
[null,null,null,""]
[null,null,null,""]
[null,null,null,""]
[null,null,null,""]
[null,null,null,""]
[null,null,null,""]
[null,null,null,""]
[null,null,null,""]
[null,null,null,""]
[null,null,null,""]
[null,null,null,""]
[null,null,null,""]
[null,null,null,""]
[null,null,null,""]
[null,null,null,""]
[null,null,null,""]
[null,null,null,""]
[null,null,null,""]
[null,null,null,""]
[null,null,null,""]
[null,null,null,""]
[null,null,null,""]
[null,null,null,""]
[null,null,null,""]
[null,null,null,""]
[null,null,null,""]
[null,null,null,""]
[null,null,null,""]
[null,null,null,""]
[null,null,null,""]
[null,null,null,""]
[null,null,null,""]
[null,null,null,""]
[null,null,null,""]
[null,null,null,""]
[null,null,null,""]
[null,null,null,""]
[null,null,null,""]
[null,null,null,""]
[null,null,null,""]
[null,null,null,""]
[null,null,null,""]
[null,null,null,""]
[null,null,null,""]
[null,null,null,""]
[null,null,null,""]
[null,null,null,""]
[null,null,null,""]
[null,null,null,""]
[null,null,null,""]
[null,null,null,""]
[null,null,null,{"$f":"IF(ISBLANK(C1048387),\"\",1)","v":""}]
[null,null,null,""]
[null,null,null,""]
[null,null,null,""]
[null,null,null,""]
[null,null,null,""]
[null,null,null,""]
[null,null,null,""]
[null,null,null,""]
[null,null,null,""]
[null,null,null,""]
[null,null,null,""]
[null,null,null,""]
[null,null,null,""]
[null,null,null,""]
[null,null,null,""]
[null,null,null,""]
[null,null,null,""]
[null,null,null,""]
[null,null,null,""]
[null,null,null,""]
[null,null,null,""]
[null,null,null,""]
[null,null,null,""]
[null,null,null,""]
[null,null,null,""]
[null,null,null,""]
[null,null,null,""]
[null,null,null,""]
[null,null,null,""]
[null,null,null,""]
[null,null,null,""]
[null,null,null,""]
[null,null,null,""]
[null,null,null,""]
[null,null,null,""]
[null,null,null,""]
[null,null,null,""]
[null,null,null,""]
[null,null,null,""]
[null,null,null,""]
[null,null,null,""]
[null,null,null,""]
[null,null,null,""]
[null,null,null,""]
[null,null,null,""]
[null,null,null,""]
[null,null,null,""]
[null,null,null,""]
[null,null,null,""]
[null,null,null,""]
[null,null,null,""]
[null,null,null,""]
[null,null,null,""]
[null,null,null,""]
[null,null,null,""]
[null,null,null,""]
[null,null,null,""]
[null,null,null,""]
[null,null,null,""]
[null,null,null,""]
[null,null,null,""]
[null,null,null,""]
[null,null,null,""]
[null,null,null,{"$f":"IF(ISBLANK(C1048451),\"\",1)","v":""}]
[null,null,null,""]
[null,null,null,""]
[null,null,null,""]
[null,null,null,""]
[null,null,null,""]
[null,null,null,""]
[null,null,null,""]
[null,null,null,""]
[null,null,null,""]
[null,null,null,""]
[null,null,null,""]
[null,null,null,""]
[null,null,null,""]
[null,null,null,""]
[null,null,null,""]
[null,null,null,""]
[null,null,null,""]
[null,null,null,""]
[null,null,null,""]
[null,null,null,""]
[null,null,null,""]
[null,null,null,""]
[null,null,null,""]
[null,null,null,""]
[null,null,null,""]
[null,null,null,""]
[null,null,null,""]
[null,null,null,""]
[null,null,null,""]
[null,null,null,""]
[null,null,null,""]
[null,null,null,""]
[null,null,null,""]
[null,null,null,""]
[null,null,null,""]
[null,null,null,""]
[null,null,null,""]
[null,null,null,""]
[null,null,null,""]
[null,null,null,""]
[null,null,null,""]
[null,null,null,""]
[null,null,null,""]
[null,null,null,""]
[null,null,null,""]
[null,null,null,""]
[null,null,null,""]
[null,null,null,""]
[null,null,null,""]
[null,null,null,""]
[null,null,null,""]
[null,null,null,""]
[null,null,null,""]
[null,null,null,""]
[null,null,null,""]
[null,null,null,""]
[null,null,null,""]
[null,null,null,""]
[null,null,null,""]
[null,null,null,""]
[null,null,null,""]
[null,null,null,""]
[null,null,null,""]
[null,null,null,{"$f":"IF(ISBLANK(C1048515),\"\",1)","v":""}]
[null,null,null,""]
[null,null,null,""]
[null,null,null,""]
[null,null,null,""]
[null,null,null,""]
[null,null,null,""]
[null,null,null,""]
[null,null,null,""]
[null,null,null,""]
[null,null,null,""]
[null,null,null,""]
[null,null,null,""]
[null,null,null,""]
[null,null,null,""]
[null,null,null,""]
[null,null,null,""]
[null,null,null,""]
[null,null,null,""]
[null,null,null,""]
[null,null,null,""]
[null,null,null,""]
[null,null,null,""]
[null,null,null,""]
[null,null,null,""]
[null,null,null,""]
[null,null,null,""]
[null,null,null,""]
[null,null,null,""]
[null,null,null,""]
[null,null,null,""]
[null,null,null,""]
[null,null,null,""]
[null,null,null,""]
[null,null,null,""]
[null,null,null,""]
[null,null,null,""]
[null,null,null,""]
[null,null,null,""]
[null,null,null,""]
[null,null,null,""]
[null,null,null,""]
[null,null,null,""]
[null,null,null,""]
[null,null,null,""]
[null,null,null,""]
[null,null,null,""]
[null,null,null,""]
[null,null,null,""]
[null,null,null,""]
[null,null,null,""]
[null,null,null,""]
[null,null,null,""]
[null,null,null,""]
[null,null,null,""]
[null,null,null,""]
[null,null,null,""]
[null,null,null,""]
[null,null,null,""]
[null,null,null,""]
[null,null,null,""]
[null,null,null,""]

{"sheet":"Diagram","index":1,"n_rows":1002,"n_cols":3,"rows_kept":1002,"cut":false,"hidden":false,"merged":[]}
[null,"Count of Frequency"]
[null,null,"(blank)"]
[null,"R0001",1]
[null,"R0002",1]
[null,"R0003",1]
[null,"R0004",1]
[null,"R0005",1]
[null,"R0006",1]
[null,"R0007",1]
[null,"R0008",1]
[null,"R0009",1]
[null,"R0010",1]
[null,"R0011",1]
[null,"R0012",1]
[null,"R0013",1]
[null,"R0014",1]
[null,"R0015",1]
[null,"R0016",1]
[null,"R0017",1]
[null,"R0018",1]
[null,"R0019",1]
[null,"R0020",1]
[null,"R0021",1]
[null,"R0022",1]
[null,"R0023",1]
[null,"R0024",1]
[null,"R0025",1]
[null,"R0026",1]
[null,"R0027",1]
[null,"R0028",1]
[null,"R0029",1]
[null,"R0030",1]
[null,"R0031",1]
[null,"R0032",1]
[null,"R0033",1]
[null,"R0034",1]
[null,"R0035",1]
[null,"R0036",1]
[null,"R0037",1]
[null,"R0038",1]
[null,"R0039",1]
[null,"R0040",1]
[null,"R0041",1]
[null,"R0042",1]
[null,"R0043",1]
[null,"R0044",1]
[null,"R0045",1]
[null,"R0046",1]
[null,"R0047",1]
[null,"R0048",1]
[null,"R0049",1]
[null,"R0050",1]
[null,"R0051",1]
[null,"R0052",1]
[null,"R0053",1]
[null,"R0054",1]
[null,"R0055",1]
[null,"R0056",1]
[null,"R0057",1]
[null,"R0058",1]
[null,"R0059",1]
[null,"R0060",1]
[null,"R0061",1]
[null,"R0062",1]
[null,"R0063",1]
[null,"R0064",1]
[null,"R0065",1]
[null,"R0066",1]
[null,"R0067",1]
[null,"R0068",1]
[null,"R0069",1]
[null,"R0070",1]
[null,"R0071",1]
[null,"R0072",1]
[null,"R0073",1]
[null,"R0074",1]
[null,"R0075",1]
[null,"R0076",1]
[null,"R0077",1]
[null,"R0078",1]
[null,"R0079",1]
[null,"R0080",1]
[null,"R0081",1]
[null,"R0082",1]
[null,"R0083",1]
[null,"R0084",1]
[null,"R0085",1]
[null,"R0086",1]
[null,"R0087",1]
[null,"R0088",1]
[null,"R0089",1]
[null,"R0090",1]
[null,"R0091",1]
[null,"R0092",1]
[null,"R0093",1]
[null,"R0094",1]
[null,"R0095",1]
[null,"R0096",1]
[null,"R0097",1]
[null,"R0098",1]
[null,"R0099",1]
[null,"R0100",1]
[null,"R0101",1]
[null,"R0102",1]
[null,"R0103",1]
[null,"R0104",1]
[null,"R0105",1]
[null,"R0106",1]
[null,"R0107",1]
[null,"R0108",1]
[null,"R0109",1]
[null,"R0110",1]
[null,"R0111",1]
[null,"R0112",1]
[null,"R0113",1]
[null,"R0114",1]
[null,"R0115",1]
[null,"R0116",1]
[null,"R0117",1]
[null,"R0118",1]
[null,"R0119",1]
[null,"R0120",1]
[null,"R0121",1]
[null,"R0122",1]
[null,"R0123",1]
[null,"R0124",1]
[null,"R0125",1]
[null,"R0126",1]
[null,"R0127",1]
[null,"R0128",1]
[null,"R0129",1]
[null,"R0130",1]
[null,"R0131",1]
[null,"R0132",1]
[null,"R0133",1]
[null,"R0134",1]
[null,"R0135",1]
[null,"R0136",1]
[null,"R0137",1]
[null,"R0138",1]
[null,"R0139",1]
[null,"R0140",1]
[null,"R0141",1]
[null,"R0142",1]
[null,"R0143",1]
[null,"R0144",1]
[null,"R0145",1]
[null,"R0146",1]
[null,"R0147",1]
[null,"R0148",1]
[null,"R0149",1]
[null,"R0150",1]
[null,"R0151",1]
[null,"R0152",1]
[null,"R0153",1]
[null,"R0154",1]
[null,"R0155",1]
[null,"R0156",1]
[null,"R0157",1]
[null,"R0158",1]
[null,"R0159",1]
[null,"R0160",1]
[null,"R0161",1]
[null,"R0162",1]
[null,"R0163",1]
[null,"R0164",1]
[null,"R0165",1]
[null,"R0166",1]
[null,"R0167",1]
[null,"R0168",1]
[null,"R0169",1]
[null,"R0170",1]
[null,"R0171",1]
[null,"R0172",1]
[null,"R0173",1]
[null,"R0174",1]
[null,"R0175",1]
[null,"R0176",1]
[null,"R0177",1]
[null,"R0178",1]
[null,"R0179",1]
[null,"R0180",1]
[null,"R0181",1]
[null,"R0182",1]
[null,"R0183",1]
[null,"R0184",1]
[null,"R0185",1]
[null,"R0186",1]
[null,"R0187",1]
[null,"R0188",1]
[null,"R0189",1]
[null,"R0190",1]
[null,"R0191",1]
[null,"R0192",1]
[null,"R0193",1]
[null,"R0194",1]
[null,"R0195",1]
[null,"R0196",1]
[null,"R0197",1]
[null,"R0198",1]
[null,"R0199",1]
[null,"R0200",1]
[null,"R0201",1]
[null,"R0202",1]
[null,"R0203",1]
[null,"R0204",1]
[null,"R0205",1]
[null,"R0206",1]
[null,"R0207",1]
[null,"R0208",1]
[null,"R0209",1]
[null,"R0210",1]
[null,"R0211",1]
[null,"R0212",1]
[null,"R0213",1]
[null,"R0214",1]
[null,"R0215",1]
[null,"R0216",1]
[null,"R0217",1]
[null,"R0218",1]
[null,"R0219",1]
[null,"R0220",1]
[null,"R0221",1]
[null,"R0222",1]
[null,"R0223",1]
[null,"R0224",1]
[null,"R0225",1]
[null,"R0226",1]
[null,"R0227",1]
[null,"R0228",1]
[null,"R0229",1]
[null,"R0230",1]
[null,"R0231",1]
[null,"R0232",1]
[null,"R0233",1]
[null,"R0234",1]
[null,"R0235",1]
[null,"R0236",1]
[null,"R0237",1]
[null,"R0238",1]
[null,"R0239",1]
[null,"R0240",1]
[null,"R0241",1]
[null,"R0242",1]
[null,"R0243",1]
[null,"R0244",1]
[null,"R0245",1]
[null,"R0246",1]
[null,"R0247",1]
[null,"R0248",1]
[null,"R0249",1]
[null,"R0250",1]
[null,"R0251",1]
[null,"R0252",1]
[null,"R0253",1]
[null,"R0254",1]
[null,"R0255",1]
[null,"R0256",1]
[null,"R0257",1]
[null,"R0258",1]
[null,"R0259",1]
[null,"R0260",1]
[null,"R0261",1]
[null,"R0262",1]
[null,"R0263",1]
[null,"R0264",1]
[null,"R0265",1]
[null,"R0266",1]
[null,"R0267",1]
[null,"R0268",1]
[null,"R0269",1]
[null,"R0270",1]
[null,"R0271",1]
[null,"R0272",1]
[null,"R0273",1]
[null,"R0274",1]
[null,"R0275",1]
[null,"R0276",1]
[null,"R0277",1]
[null,"R0278",1]
[null,"R0279",1]
[null,"R0280",1]
[null,"R0281",1]
[null,"R0282",1]
[null,"R0283",1]
[null,"R0284",1]
[null,"R0285",1]
[null,"R0286",1]
[null,"R0287",1]
[null,"R0288",1]
[null,"R0289",1]
[null,"R0290",1]
[null,"R0291",1]
[null,"R0292",1]
[null,"R0293",1]
[null,"R0294",1]
[null,"R0295",1]
[null,"R0296",1]
[null,"R0297",1]
[null,"R0298",1]
[null,"R0299",1]
[null,"R0300",1]
[null,"R0301",1]
[null,"R0302",1]
[null,"R0303",1]
[null,"R0304",1]
[null,"R0305",1]
[null,"R0306",1]
[null,"R0307",1]
[null,"R0308",1]
[null,"R0309",1]
[null,"R0310",1]
[null,"R0311",1]
[null,"R0312",1]
[null,"R0313",1]
[null,"R0314",1]
[null,"R0315",1]
[null,"R0316",1]
[null,"R0317",1]
[null,"R0318",1]
[null,"R0319",1]
[null,"R0320",1]
[null,"R0321",1]
[null,"R0322",1]
[null,"R0323",1]
[null,"R0324",1]
[null,"R0325",1]
[null,"R0326",1]
[null,"R0327",1]
[null,"R0328",1]
[null,"R0329",1]
[null,"R0330",1]
[null,"R0331",1]
[null,"R0332",1]
[null,"R0333",1]
[null,"R0334",1]
[null,"R0335",1]
[null,"R0336",1]
[null,"R0337",1]
[null,"R0338",1]
[null,"R0339",1]
[null,"R0340",1]
[null,"R0341",1]
[null,"R0342",1]
[null,"R0343",1]
[null,"R0344",1]
[null,"R0345",1]
[null,"R0346",1]
[null,"R0347",1]
[null,"R0348",1]
[null,"R0349",1]
[null,"R0350",1]
[null,"R0351",1]
[null,"R0352",1]
[null,"R0353",1]
[null,"R0354",1]
[null,"R0355",1]
[null,"R0356",1]
[null,"R0357",1]
[null,"R0358",1]
[null,"R0359",1]
[null,"R0360",1]
[null,"R0361",1]
[null,"R0362",1]
[null,"R0363",1]
[null,"R0364",1]
[null,"R0365",1]
[null,"R0366",1]
[null,"R0367",1]
[null,"R0368",1]
[null,"R0369",1]
[null,"R0370",1]
[null,"R0371",1]
[null,"R0372",1]
[null,"R0373",1]
[null,"R0374",1]
[null,"R0375",1]
[null,"R0376",1]
[null,"R0377",1]
[null,"R0378",1]
[null,"R0379",1]
[null,"R0380",1]
[null,"R0381",1]
[null,"R0382",1]
[null,"R0383",1]
[null,"R0384",1]
[null,"R0385",1]
[null,"R0386",1]
[null,"R0387",1]
[null,"R0388",1]
[null,"R0389",1]
[null,"R0390",1]
[null,"R0391",1]
[null,"R0392",1]
[null,"R0393",1]
[null,"R0394",1]
[null,"R0395",1]
[null,"R0396",1]
[null,"R0397",1]
[null,"R0398",1]
[null,"R0399",1]
[null,"R0400",1]
[null,"R0401",1]
[null,"R0402",1]
[null,"R0403",1]
[null,"R0404",1]
[null,"R0405",1]
[null,"R0406",1]
[null,"R0407",1]
[null,"R0408",1]
[null,"R0409",1]
[null,"R0410",1]
[null,"R0411",1]
[null,"R0412",1]
[null,"R0413",1]
[null,"R0414",1]
[null,"R0415",1]
[null,"R0416",1]
[null,"R0417",1]
[null,"R0418",1]
[null,"R0419",1]
[null,"R0420",1]
[null,"R0421",1]
[null,"R0422",1]
[null,"R0423",1]
[null,"R0424",1]
[null,"R0425",1]
[null,"R0426",1]
[null,"R0427",1]
[null,"R0428",1]
[null,"R0429",1]
[null,"R0430",1]
[null,"R0431",1]
[null,"R0432",1]
[null,"R0433",1]
[null,"R0434",1]
[null,"R0435",1]
[null,"R0436",1]
[null,"R0437",1]
[null,"R0438",1]
[null,"R0439",1]
[null,"R0440",1]
[null,"R0441",1]
[null,"R0442",1]
[null,"R0443",1]
[null,"R0444",1]
[null,"R0445",1]
[null,"R0446",1]
[null,"R0447",1]
[null,"R0448",1]
[null,"R0449",1]
[null,"R0450",1]
[null,"R0451",1]
[null,"R0452",1]
[null,"R0453",1]
[null,"R0454",1]
[null,"R0455",1]
[null,"R0456",1]
[null,"R0457",1]
[null,"R0458",1]
[null,"R0459",1]
[null,"R0460",1]
[null,"R0461",1]
[null,"R0462",1]
[null,"R0463",1]
[null,"R0464",1]
[null,"R0465",1]
[null,"R0466",1]
[null,"R0467",1]
[null,"R0468",1]
[null,"R0469",1]
[null,"R0470",1]
[null,"R0471",1]
[null,"R0472",1]
[null,"R0473",1]
[null,"R0474",1]
[null,"R0475",1]
[null,"R0476",1]
[null,"R0477",1]
[null,"R0478",1]
[null,"R0479",1]
[null,"R0480",1]
[null,"R0481",1]
[null,"R0482",1]
[null,"R0483",1]
[null,"R0484",1]
[null,"R0485",1]
[null,"R0486",1]
[null,"R0487",1]
[null,"R0488",1]
[null,"R0489",1]
[null,"R0490",1]
[null,"R0491",1]
[null,"R0492",1]
[null,"R0493",1]
[null,"R0494",1]
[null,"R0495",1]
[null,"R0496",1]
[null,"R0497",1]
[null,"R0498",1]
[null,"R0499",1]
[null,"R0500",1]
[null,"R0501",1]
[null,"R0502",1]
[null,"R0503",1]
[null,"R0504",1]
[null,"R0505",1]
[null,"R0506",1]
[null,"R0507",1]
[null,"R0508",1]
[null,"R0509",1]
[null,"R0510",1]
[null,"R0511",1]
[null,"R0512",1]
[null,"R0513",1]
[null,"R0514",1]
[null,"R0515",1]
[null,"R0516",1]
[null,"R0517",1]
[null,"R0518",1]
[null,"R0519",1]
[null,"R0520",1]
[null,"R0521",1]
[null,"R0522",1]
[null,"R0523",1]
[null,"R0524",1]
[null,"R0525",1]
[null,"R0526",1]
[null,"R0527",1]
[null,"R0528",1]
[null,"R0529",1]
[null,"R0530",1]
[null,"R0531",1]
[null,"R0532",1]
[null,"R0533",1]
[null,"R0534",1]
[null,"R0535",1]
[null,"R0536",1]
[null,"R0537",1]
[null,"R0538",1]
[null,"R0539",1]
[null,"R0540",1]
[null,"R0541",1]
[null,"R0542",1]
[null,"R0543",1]
[null,"R0544",1]
[null,"R0545",1]
[null,"R0546",1]
[null,"R0547",1]
[null,"R0548",1]
[null,"R0549",1]
[null,"R0550",1]
[null,"R0551",1]
[null,"R0552",1]
[null,"R0553",1]
[null,"R0554",1]
[null,"R0555",1]
[null,"R0556",1]
[null,"R0557",1]
[null,"R0558",1]
[null,"R0559",1]
[null,"R0560",1]
[null,"R0561",1]
[null,"R0562",1]
[null,"R0563",1]
[null,"R0564",1]
[null,"R0565",1]
[null,"R0566",1]
[null,"R0567",1]
[null,"R0568",1]
[null,"R0569",1]
[null,"R0570",1]
[null,"R0571",1]
[null,"R0572",1]
[null,"R0573",1]
[null,"R0574",1]
[null,"R0575",1]
[null,"R0576",1]
[null,"R0577",1]
[null,"R0578",1]
[null,"R0579",1]
[null,"R0580",1]
[null,"R0581",1]
[null,"R0582",1]
[null,"R0583",1]
[null,"R0584",1]
[null,"R0585",1]
[null,"R0586",1]
[null,"R0587",1]
[null,"R0588",1]
[null,"R0589",1]
[null,"R0590",1]
[null,"R0591",1]
[null,"R0592",1]
[null,"R0593",1]
[null,"R0594",1]
[null,"R0595",1]
[null,"R0596",1]
[null,"R0597",1]
[null,"R0598",1]
[null,"R0599",1]
[null,"R0600",1]
[null,"R0601",1]
[null,"R0602",1]
[null,"R0603",1]
[null,"R0604",1]
[null,"R0605",1]
[null,"R0606",1]
[null,"R0607",1]
[null,"R0608",1]
[null,"R0609",1]
[null,"R0610",1]
[null,"R0611",1]
[null,"R0612",1]
[null,"R0613",1]
[null,"R0614",1]
[null,"R0615",1]
[null,"R0616",1]
[null,"R0617",1]
[null,"R0618",1]
[null,"R0619",1]
[null,"R0620",1]
[null,"R0621",1]
[null,"R0622",1]
[null,"R0623",1]
[null,"R0624",1]
[null,"R0625",1]
[null,"R0626",1]
[null,"R0627",1]
[null,"R0628",1]
[null,"R0629",1]
[null,"R0630",1]
[null,"R0631",1]
[null,"R0632",1]
[null,"R0633",1]
[null,"R0634",1]
[null,"R0635",1]
[null,"R0636",1]
[null,"R0637",1]
[null,"R0638",1]
[null,"R0639",1]
[null,"R0640",1]
[null,"R0641",1]
[null,"R0642",1]
[null,"R0643",1]
[null,"R0644",1]
[null,"R0645",1]
[null,"R0646",1]
[null,"R0647",1]
[null,"R0648",1]
[null,"R0649",1]
[null,"R0650",1]
[null,"R0651",1]
[null,"R0652",1]
[null,"R0653",1]
[null,"R0654",1]
[null,"R0655",1]
[null,"R0656",1]
[null,"R0657",1]
[null,"R0658",1]
[null,"R0659",1]
[null,"R0660",1]
[null,"R0661",1]
[null,"R0662",1]
[null,"R0663",1]
[null,"R0664",1]
[null,"R0665",1]
[null,"R0666",1]
[null,"R0667",1]
[null,"R0668",1]
[null,"R0669",1]
[null,"R0670",1]
[null,"R0671",1]
[null,"R0672",1]
[null,"R0673",1]
[null,"R0674",1]
[null,"R0675",1]
[null,"R0676",1]
[null,"R0677",1]
[null,"R0678",1]
[null,"R0679",1]
[null,"R0680",1]
[null,"R0681",1]
[null,"R0682",1]
[null,"R0683",1]
[null,"R0684",1]
[null,"R0685",1]
[null,"R0686",1]
[null,"R0687",1]
[null,"R0688",1]
[null,"R0689",1]
[null,"R0690",1]
[null,"R0691",1]
[null,"R0692",1]
[null,"R0693",1]
[null,"R0694",1]
[null,"R0695",1]
[null,"R0696",1]
[null,"R0697",1]
[null,"R0698",1]
[null,"R0699",1]
[null,"R0700",1]
[null,"R0701",1]
[null,"R0702",1]
[null,"R0703",1]
[null,"R0704",1]
[null,"R0705",1]
[null,"R0706",1]
[null,"R0707",1]
[null,"R0708",1]
[null,"R0709",1]
[null,"R0710",1]
[null,"R0711",1]
[null,"R0712",1]
[null,"R0713",1]
[null,"R0714",1]
[null,"R0715",1]
[null,"R0716",1]
[null,"R0717",1]
[null,"R0718",1]
[null,"R0719",1]
[null,"R0720",1]
[null,"R0721",1]
[null,"R0722",1]
[null,"R0723",1]
[null,"R0724",1]
[null,"R0725",1]
[null,"R0726",1]
[null,"R0727",1]
[null,"R0728",1]
[null,"R0729",1]
[null,"R0730",1]
[null,"R0731",1]
[null,"R0732",1]
[null,"R0733",1]
[null,"R0734",1]
[null,"R0735",1]
[null,"R0736",1]
[null,"R0737",1]
[null,"R0738",1]
[null,"R0739",1]
[null,"R0740",1]
[null,"R0741",1]
[null,"R0742",1]
[null,"R0743",1]
[null,"R0744",1]
[null,"R0745",1]
[null,"R0746",1]
[null,"R0747",1]
[null,"R0748",1]
[null,"R0749",1]
[null,"R0750",1]
[null,"R0751",1]
[null,"R0752",1]
[null,"R0753",1]
[null,"R0754",1]
[null,"R0755",1]
[null,"R0756",1]
[null,"R0757",1]
[null,"R0758",1]
[null,"R0759",1]
[null,"R0760",1]
[null,"R0761",1]
[null,"R0762",1]
[null,"R0763",1]
[null,"R0764",1]
[null,"R0765",1]
[null,"R0766",1]
[null,"R0767",1]
[null,"R0768",1]
[null,"R0769",1]
[null,"R0770",1]
[null,"R0771",1]
[null,"R0772",1]
[null,"R0773",1]
[null,"R0774",1]
[null,"R0775",1]
[null,"R0776",1]
[null,"R0777",1]
[null,"R0778",1]
[null,"R0779",1]
[null,"R0780",1]
[null,"R0781",1]
[null,"R0782",1]
[null,"R0783",1]
[null,"R0784",1]
[null,"R0785",1]
[null,"R0786",1]
[null,"R0787",1]
[null,"R0788",1]
[null,"R0789",1]
[null,"R0790",1]
[null,"R0791",1]
[null,"R0792",1]
[null,"R0793",1]
[null,"R0794",1]
[null,"R0795",1]
[null,"R0796",1]
[null,"R0797",1]
[null,"R0798",1]
[null,"R0799",1]
[null,"R0800",1]
[null,"R0801",1]
[null,"R0802",1]
[null,"R0803",1]
[null,"R0804",1]
[null,"R0805",1]
[null,"R0806",1]
[null,"R0807",1]
[null,"R0808",1]
[null,"R0809",1]
[null,"R0810",1]
[null,"R0811",1]
[null,"R0812",1]
[null,"R0813",1]
[null,"R0814",1]
[null,"R0815",1]
[null,"R0816",1]
[null,"R0817",1]
[null,"R0818",1]
[null,"R0819",1]
[null,"R0820",1]
[null,"R0821",1]
[null,"R0822",1]
[null,"R0823",1]
[null,"R0824",1]
[null,"R0825",1]
[null,"R0826",1]
[null,"R0827",1]
[null,"R0828",1]
[null,"R0829",1]
[null,"R0830",1]
[null,"R0831",1]
[null,"R0832",1]
[null,"R0833",1]
[null,"R0834",1]
[null,"R0835",1]
[null,"R0836",1]
[null,"R0837",1]
[null,"R0838",1]
[null,"R0839",1]
[null,"R0840",1]
[null,"R0841",1]
[null,"R0842",1]
[null,"R0843",1]
[null,"R0844",1]
[null,"R0845",1]
[null,"R0846",1]
[null,"R0847",1]
[null,"R0848",1]
[null,"R0849",1]
[null,"R0850",1]
[null,"R0851",1]
[null,"R0852",1]
[null,"R0853",1]
[null,"R0854",1]
[null,"R0855",1]
[null,"R0856",1]
[null,"R0857",1]
[null,"R0858",1]
[null,"R0859",1]
[null,"R0860",1]
[null,"R0861",1]
[null,"R0862",1]
[null,"R0863",1]
[null,"R0864",1]
[null,"R0865",1]
[null,"R0866",1]
[null,"R0867",1]
[null,"R0868",1]
[null,"R0869",1]
[null,"R0870",1]
[null,"R0871",1]
[null,"R0872",1]
[null,"R0873",1]
[null,"R0874",1]
[null,"R0875",1]
[null,"R0876",1]
[null,"R0877",1]
[null,"R0878",1]
[null,"R0879",1]
[null,"R0880",1]
[null,"R0881",1]
[null,"R0882",1]
[null,"R0883",1]
[null,"R0884",1]
[null,"R0885",1]
[null,"R0886",1]
[null,"R0887",1]
[null,"R0888",1]
[null,"R0889",1]
[null,"R0890",1]
[null,"R0891",1]
[null,"R0892",1]
[null,"R0893",1]
[null,"R0894",1]
[null,"R0895",1]
[null,"R0896",1]
[null,"R0897",1]
[null,"R0898",1]
[null,"R0899",1]
[null,"R0900",1]
[null,"R0901",1]
[null,"R0902",1]
[null,"R0903",1]
[null,"R0904",1]
[null,"R0905",1]
[null,"R0906",1]
[null,"R0907",1]
[null,"R0908",1]
[null,"R0909",1]
[null,"R0910",1]
[null,"R0911",1]
[null,"R0912",1]
[null,"R0913",1]
[null,"R0914",1]
[null,"R0915",1]
[null,"R0916",1]
[null,"R0917",1]
[null,"R0918",1]
[null,"R0919",1]
[null,"R0920",1]
[null,"R0921",1]
[null,"R0922",1]
[null,"R0923",1]
[null,"R0924",1]
[null,"R0925",1]
[null,"R0926",1]
[null,"R0927",1]
[null,"R0928",1]
[null,"R0929",1]
[null,"R0930",1]
[null,"R0931",1]
[null,"R0932",1]
[null,"R0933",1]
[null,"R0934",1]
[null,"R0935",1]
[null,"R0936",1]
[null,"R0937",1]
[null,"R0938",1]
[null,"R0939",1]
[null,"R0940",1]
[null,"R0941",1]
[null,"R0942",1]
[null,"R0943",1]
[null,"R0944",1]
[null,"R0945",1]
[null,"R0946",1]
[null,"R0947",1]
[null,"R0948",1]
[null,"R0949",1]
[null,"R0950",1]
[null,"R0951",1]
[null,"R0952",1]
[null,"R0953",1]
[null,"R0954",1]
[null,"R0955",1]
[null,"R0956",1]
[null,"R0957",1]
[null,"R0958",1]
[null,"R0959",1]
[null,"R0960",1]
[null,"R0961",1]
[null,"R0962",1]
[null,"R0963",1]
[null,"R0964",1]
[null,"R0965",1]
[null,"R0966",1]
[null,"R0967",1]
[null,"R0968",1]
[null,"R0969",1]
[null,"R0970",1]
[null,"R0971",1]
[null,"R0972",1]
[null,"R0973",1]
[null,"R0974",1]
[null,"R0975",1]
[null,"R0976",1]
[null,"R0977",1]
[null,"R0978",1]
[null,"R0979",1]
[null,"R0980",1]
[null,"R0981",1]
[null,"R0982",1]
[null,"R0983",1]
[null,"R0984",1]
[null,"R0985",1]
[null,"R0986",1]
[null,"R0987",1]
[null,"R0988",1]
[null,"R0989",1]
[null,"R0990",1]
[null,"R0991",1]
[null,"R0992",1]
[null,"R0993",1]
[null,"R0994",1]
[null,"R0995",1]
[null,"R0996",1]
[null,"R0997",1]
[null,"R0998",1]
[null,"R0999",1]
[null,"R1000",1]